Workbook

Sheet Design
A1: ALLEGRO ALT80802 DESIGN SPREADSHEET BUCK- Rev. 2.0
A2: INSTRUCTIONS: Enter design goals and component values in the white boxes. Ensure "Iterative Calculation" is enabled under File -> Options -> Formulas
A3: VARIABLES | B3: MIN | C3: TYP | D3: MAX | E3: UNITS | F3: COMMENTS
A4: Vin | B4: 10 | C4: 13.5 | D4: 18 | E4: V | F4: =IF(COUNTIF(Efficiency!Z5:Z48,"dropout")<1,IF(B4<Constants!B3,"Vin_min is lower than minimum VIN level",IF(D4>Constants!D3,"Vin_max is higher than maximum VIN level","Steady-state input operating voltages")),"Circuit may operate in dropout condition") -> Steady-state input operating voltages
A5: LED Current Target | B5: ‒ | C5: 0.7 | D5: ‒ | E5: A | F5: =IF(COUNTIF(Efficiency!Z5:Z48,"TSD")>0,"IC may overheat!","Desired output Current") -> Desired output Current
A6: Number of LEDs | B6: ‒ | C6: 2 | D6: ‒ | E6: ‒
A7: LED Forward Voltage | B7: ‒ | C7: 3.05 | D7: ‒ | E7: V | F7: Typical value @ target LED current
A8: RLED | B8: ‒ | C8: 0.9 | D8: ‒ | E8: Ω | F8: LED resistance @ operating current
A9: CS Resistor Tolerance | B9: ‒ | C9: 1 | D9: 1.6 | E9: % | F9: 1% initial tolerance + 100ppm @ 60°C rise
A10: Lo_tolerance | B10: -20 | C10: ‒ | D10: 20 | E10: % | F10: Output inductor tolerances
A11: RTHJA | B11: ‒ | C11: 45 | D11: ‒ | E11: °C/W | F11: Thermal resistance, 4 layer PCB
A12: Desired fsw | B12: ‒ | C12: 2 | D12: ‒ | E12: MHz | F12: Desired Switching Frequency
A13: TAMB | B13: ‒ | C13: ‒ | D13: 85 | E13: °C | F13: Maximum steady-state ambient temperature
A14: DIODE (D1) CHARACTERIZATION | D14: UNITS | E14: COMMENTS
A15: VF_nominal | B15: 0.35 | C15: 0.42 | D15: A | VF | E15: VF at nominal output current
A16: VF, Temp. Coeff. | B16: -1 | D16: mV/°C | E16: Estimated value from the datasheet for D1
A17: RTHAVG | B17: 55 | D17: °C/W | E17: Value from the data sheet for D1 (average of min/max) | I17: Diode D1: Example I-V Characteristics
A18: **** Note: The applications schematic is shown at the bottom of this TAB. **** Schematic component values are shown in BLUE.
A19: COMPONENT | B19: VALUE | C19: UNITS | D19: COMMENTS
A20: Feedback Component Calculations (Must enter RSENSE values for the remaining calculations to be accurate)
A21: RSENSE_calc | B21: =(Constants!C4)/(Design!C5) -> 0.2857142857 | C21: Ω | D21: Recommended CS resistor
A22: RSENSE = | B22: 0.286 | C22: Ω | D22: Choose a standard resistor value, or combination of values
A24: Typical & Worst Case Output Current Calculations:
A25: Iout (min|typ|max) | B25: =Constants!B4/(RFB_1*(1+C9/100)) -> 0.6646818528 | C25: =Constants!C4/RFB_1 -> 0.6993006993 | D25: =Constants!D4/(RFB_1*(1-C9/100)) -> 0.7346189164 | E25: Includes worst case IC & component variations vs. temperature
A26: Output Voltage | B26: ‒ | C26: =C6*C7+V_cs -> 6.3 | D26: ‒
A27: System Duty Cycle | B27: =MIN(Efficiency!D6:D25) -> 0.3733837278 | C27: =Efficiency!D26 -> 0.4950674905 | D27: =MAX(Efficiency!D6:D24) -> 0.6631993481 | E27: Range of system duty-cycles given Vin, Vout, Iout, VF, etc
A28: Switching Frequency Determination:
A29: fsw_max | B29: =MIN($B$27/Constants!D$19/0.000000001/1000000, Constants!D16) -> 2.5 | C29: MHz | D29: Recommended maximum PWM frequency, before possible pulse skipping
A30: fsw = | B30: =C12 -> 2 | C30: MHz | D30: Chosen Fsw | E30: =IF(D27>B34," See the DROPOUT tab for operation approaching Vin_min "," ") -> 
A31: RFREQ | B31: =(IF((10^(LOG(16.256*fsw^(-1.025))-INT(LOG(16.256*fsw^(-1.025))))*100)-VLOOKUP((10^(LOG(16.256*fsw^(-1.025))-INT(LOG(16.256*fsw^(-1.025))))*100),E96_s:E96_f,1)<VLOOKUP((10^(LOG(16.256*fsw^(-1.025))-INT(LOG(16.256*fsw^(-1.025))))*100),E96_s:E96_f,2)-(10^(LOG(16.256*fsw^(-1.025))-INT(LOG(16.256*fsw^(-1.025))))*100),VLOOKUP((10^(LOG(16.256*fsw^(-1.025))-INT(LOG(16.256*fsw^(-1.025))))*100),E96_s:E96_f,1),VLOOKUP((10^(LOG(16.256*fsw^(-1.025))-INT(LOG(16.256*fsw^(-1.025))))*100),E96_s:E96_f,2)))*10^INT(LOG(16.256*fsw^(-1.025)))/100 -> 8.06 | C31: kΩ | D31: Use the closest available 1% standard resistor value
A32: Tsw | B32: =1000*1/fsw -> 500 | C32: ns | D32: Switching period
A33: Duty CycleMIN | B33: =fsw*mega*Constants!C19*nano -> 0.16 | C33: =fsw*mega*Constants!D19*nano -> 0.2 | D33: (TYP | MAX) Minimum duty cycles at the chosen Fsw given tON,TYP, tON,MAX
A34: Duty CycleMAX | B34: =(Tsw-Min_tOFF_typ)/Tsw -> 0.8 | C34: ‒ | D34: (MIN | TYP) Maximum duty cycles at the chosen Fsw given tOFF,TYP, tOFF,MAX
A35: Output Inductor Calculations:
A36: Se | B36: =Se_2MHz*(1/(2*mega)-0.0000001)/(1/(fsw*mega)-0.0000001) -> 3.1 | C36: A/µs | D36: Slope compensation at selected switching frequency
A37: Lo_min | B37: =(MAX(VOUT/(2*Se_p),VOUT*(1-B33)/(2*IOUT*fsw)))/(1+B10/100) -> 2.3625 | C37: µH | D37: Recommended minimum output inductance value
A38: Lo_max | B38: =2.5*VOUT/(Se_p) -> 5.080645161 | C38: µH | D38: Recommended maximum output inductance value
A39: Lo_est | B39: =VOUT/Se_p*(1-0.18/D_max) -> 1.575 | C39: µH | D39: Optimum output inductance value for matching slope compensation
A40: Lo = | B40: 3.3 | C40: µH | D40: Choose Lo, considering Lo_est (choose next highest standard value)
A41: LoDCR = | B41: 22.36 | C41: mΩ | D41: Enter the output inductor's DCR, default is 35mΩ if left blank
A42: ΔILo_typ | B42: =(Vin_nom-VOUT)/(Lout*micro)*$C$27*Tsw*nano -> 0.540073626 | C42: APP | D42: Typical peak to peak output inductor ripple current
A43: ΔILo_max | B43: =VOUT/((1+B10/100)*Lout*micro)*(1-Design!B27)/((1+Constants!B17/100)*(1-Constants!C18/100)*fsw*mega) -> 0.8744644947 | C43: APP | D43: Worst case maximum inductor ripple current
A44: Lo_I_min | B44: =B25-B43/2 -> 0.2274496055 | C44: AVALLEY | D44: Lowest valley inductor current(At high VIN). Make sure it is above 0 to avoid DCM
A45: Lo_I_max | B45: =IOUT+B43/2 -> 1.137232247 | C45: APEAK | D45: This value should not exceed the inductor's specified saturation current | K45: Typical Schematic
A46: ILIMMARGIN | B46: =Constants!C30+Constants!C29*B27-B45 -> 3.811709885 | C46: A | D46: Current limit margin (minimum) before possible duty-cycle limiting
A47: Output Capacitor and Output Voltage Ripple: | I47: =-0.000003*Vreg^4 + 0.000383*Vreg^3 - 0.015135*Vreg^2 + 0.018088*Vreg + 9.964811 -> 9.970188869
A48: Allowed ILED Ripple | B48: 50 | C48: mA | D48: Maximum peak to peak LED current ripple allowed for the application
A49: Recommended Cout | B49: =ΔILo_typ/(8*fsw*B48*milli*C8*C6) -> 0.3750511292 | C49: µF | D49: Recommended minimum output capacitor
A50: Capacitance at Vout | B50: 1 | C50: µF | D50: Actual value used | I50: =IF(ISBLANK(B51),3,B51) -> 3
A51: ESR | B51: 3 | C51: mΩ | D51: Enter custom ESR value for selected capacitor, default is 3mΩ
A52: ΔVout | B52: =B42*B51+B42/(8*fsw*mega*Cout*nano) -> 35.3748225 | C52: mV | D52: Estimated typical output peak to peak voltage ripple
A53: ΔIout | B53: =B52/(RLED*C6) -> 19.65267917 | C53: mA | D53: Estimated typical output peak to peak current ripple
A54: Asynchronous Diode Requirement:
A55: VR | B55: =Constants!D3*1.2 -> 60 | D55: The asynchronous diode must be rated for this voltage
A56: IF,RMS | B56: =Iout_typ*SQRT(1-B27)*SQRT(1+(B43/Iout_typ)^2*1/12) -> 0.5885229924 | C56: ARMS | D56: The asynchronous diode must be rated to support at least this much current
A57: Input Capacitor Requirements:
A58: Allowed input ripple | B58: 50 | C58: mV | D58: Maximum peak to peak input voltage ripple allowed for the application
A59: Cin_min | B59: =IF(D27>=0.5,IF(B27<=0.5,IOUT/(4*0.8*fsw*B58*10^-3),IOUT*(B27)*(1-B27)/(0.8*fsw*B58*10^-3)),IOUT*(D27)*(1-D27)/(0.8*fsw*B58*10^-3)) -> 2.1875 | C59: µF | D59: Recommended minimum input with 50mV ripple
A60: Cin_selected | B60: 4.7 | C60: µF | D60: Selected input cap
A61: Cin_IRMS | B61: =IF(D27>=0.5,IF(B27<=0.5,SQRT(IOUT^2*0.25+0.5*B43^2/12),SQRT(IOUT^2*B27*(1-B27)+B27*B43^2/12)),SQRT(IOUT^2*D27*(1-D27)+D27*B43^2/12)) -> 0.3928893055 | C61: ARMS | D61: Input capacitance RMS current requirement (please check the temp. rise characteristics)
A62: Compensation Components:
A63: fcMAX | B63: =MIN(1000*IF(ISBLANK(B30),B29,B30)/11,75) -> 75 | C63: kHz | D63: Recommended maximum 0dB crossover frequency of the system
A64: fc = | B64: 60 | C64: kHz | D64: Choose fc considering fcMAX. Higher fc = faster system, lower stability margins
A65: R_LOADTYP | B65: =RLED -> 0.9 | C65: Ω | D65: Compensation is based on average current: ΔILo/2 < Iout < IoutMAX
A66: fP(PS) | B66: =1000/(2*PI()*RLED*Cout) -> 176.8388257 | C66: kHz | D66: Dominant pole formed by the output capacitance and the load
A67: Loop Gain (dB) | B67: =20*LOG10(gm_POWER)+20*LOG10(RFB_1)+Constants!C10 -> 68.21217085 | D67: DC overall loop gain
A68: fP(ea)_target | B68: =fc*kilo/(10^(B67/20)) -> 23.31002331 | D68: Target error amplifier pole
A69: Rz | B69: =1000/(2*PI()*B72*B66) -> 1.097560976 | C69: kΩ | D69: Recommended compensation resister to achieve fc
A70: Actual Rz | B70: 1.1 | C70: kΩ | D70: Choose the closest available 1% standard resister value
A71: Cz | B71: =1*giga/(2*PI()*Constants!C12*mega*Design!B68) -> 0.819329647 | C71: nF | D71: Recommended compensation capacitor, use closest available value
A72: Actual Cz | B72: 0.82 | C72: nF | D72: Chosen Cz
A73: Cp | B73: 22 | C73: pF | D73: Recommended HF compensation capacitor, use closest available value
A74: Actual Cp | B74: 22 | C74: pF | D74: Chosen Cp
A75: Optional Binning Components
A76: Bin 1 (maximum current) | B76: 100 | C76: % | D76: Maximum current with no binning resistor
A77: Bin 2 | B77: 90 | C77: % | D77: Current value as a percentage for maximum current
A78: Bin 3 | B78: 80 | C78: % | D78: Current value as a percentage for maximum current
A79: Bin 4 (Minimum current) | B79: 70 | C79: % | D79: Current value as a percentage for maximum current
A80: Lowest Bin Coefficient | B80: 0.95 | D80: Must be less than 1. Change value to fine tune BINNING accuracy
A81: R2 | B81: 2 | C81: kΩ | D81: Enter R2 in kΩ, recommend 1kΩ to 3 kΩ | J81: =R_3 -> 118
A83: Recommended R1 | B83: =IF(I91<1,I91*1000,I91) -> 1 | K83: =R_1 -> 1
A84: Recommended R2 | B84: =IF(B81<1,B81*1000,B81) -> 2
A85: Recommended R3 | B85: =IF(I92<1,I92*1000,I92) -> 118 | J85: =R_2 -> 2
A86: Recommended Rsense | B86: =((I91+B81)/B81*V_cs)/Iout_typ -> 0.429
A87: Estimated Power Loss | B87: =MAX(E90:E93) -> 0.2097902098 | K87: =Rsense -> 0.429
K88: =B87 -> 0.2097902098
A89: NONE | C89: Iout | D89: Actual % | E89: Rsense Power | F89: VLED-
A90: BIN1 | B90: Open | C90: =(I91+B81)/B81*V_cs/Rsense -> 0.6993006993 | D90: 1 | E90: =C90^2*Rsense -> 0.2097902098 | F90: =C90*Rsense -> 0.3 | J90: Coefficient
A91: BIN2 | B91: =IF(I93<1,I93*1000,I93) -> 2.21 | C91: =((I91*(I93+I92))/(I91+I93+I92)+B81)/B81*V_cs/Rsense -> 0.629258562 | D91: =1+(C91-C90)/C90 -> 0.8998397436 | E91: =C91^2*Rsense -> 0.1698695589 | F91: =C91*Rsense -> 0.2699519231 | G91: R1 | H91: =(1-BIN4_Coeff)/BIN4_Coeff*R_2k -> 1.007518797 | I91: =(IF((10^(LOG(H91)-INT(LOG(H91)))*100)-VLOOKUP((10^(LOG(H91)-INT(LOG(H91)))*100),E96_s:E96_f,1)<VLOOKUP((10^(LOG(H91)-INT(LOG(H91)))*100),E96_s:E96_f,2)-(10^(LOG(H91)-INT(LOG(H91)))*100),VLOOKUP((10^(LOG(H91)-INT(LOG(H91)))*100),E96_s:E96_f,1),VLOOKUP((10^(LOG(H91)-INT(LOG(H91)))*100),E96_s:E96_f,2)))*10^INT(LOG(H91))/100 -> 1
A92: BIN3 | B92: =IF(I94<1,I94*1000,I94) -> 549 | C92: =((I91*(I94+I92))/(I91+I94+I92)+B81)/B81*V_cs/Rsense -> 0.5594685259 | D92: =1+(C92-C90)/C90 -> 0.800039992 | E92: =C92^2*Rsense -> 0.1342791585 | F92: =C92*Rsense -> 0.2400119976 | G92: R3 | H92: =(1-Bin_Coeff)/Bin_Coeff*R_2k*R_1k/(R_1k-(1-Bin_Coeff)/Bin_Coeff*R_2k) -> 0.1176470588 | I92: =(IF((10^(LOG(H92)-INT(LOG(H92)))*100)-VLOOKUP((10^(LOG(H92)-INT(LOG(H92)))*100),E96_s:E96_f,1)<VLOOKUP((10^(LOG(H92)-INT(LOG(H92)))*100),E96_s:E96_f,2)-(10^(LOG(H92)-INT(LOG(H92)))*100),VLOOKUP((10^(LOG(H92)-INT(LOG(H92)))*100),E96_s:E96_f,1),VLOOKUP((10^(LOG(H92)-INT(LOG(H92)))*100),E96_s:E96_f,2)))*10^INT(LOG(H92))/100 -> 0.118 | J92: =BIN_4/100*Bin_Coeff -> 0.665
A93: BIN4 | B93: Short | C93: =((I91*I92)/(I91+I92)+B81)/B81*V_cs/Rsense -> 0.4908031742 | D93: =1+(C93-C90)/C90 -> 0.7018485391 | E93: =C93^2*Rsense -> 0.1033408472 | F93: =C93*Rsense -> 0.2105545617 | G93: Rbin2 | H93: =(1-BIN2_Coeff)/BIN2_Coeff*R_2k*R_1k/(R_1k-(1-BIN2_Coeff)/BIN2_Coeff*R_2k)-R_3k -> 2.215333333 | I93: =(IF((10^(LOG(H93)-INT(LOG(H93)))*100)-VLOOKUP((10^(LOG(H93)-INT(LOG(H93)))*100),E96_s:E96_f,1)<VLOOKUP((10^(LOG(H93)-INT(LOG(H93)))*100),E96_s:E96_f,2)-(10^(LOG(H93)-INT(LOG(H93)))*100),VLOOKUP((10^(LOG(H93)-INT(LOG(H93)))*100),E96_s:E96_f,1),VLOOKUP((10^(LOG(H93)-INT(LOG(H93)))*100),E96_s:E96_f,2)))*10^INT(LOG(H93))/100 -> 2.21 | J93: =R_2k/(R_2k+R_1k)/(BIN_2/100) -> 0.7407407407
G94: Rbin3 | H94: =(1-J94)/J94*R_2k*R_1k/(R_1k-(1-J94)/J94*R_2k)-R_3k -> 0.5486666667 | I94: =(IF((10^(LOG(H94)-INT(LOG(H94)))*100)-VLOOKUP((10^(LOG(H94)-INT(LOG(H94)))*100),E96_s:E96_f,1)<VLOOKUP((10^(LOG(H94)-INT(LOG(H94)))*100),E96_s:E96_f,2)-(10^(LOG(H94)-INT(LOG(H94)))*100),VLOOKUP((10^(LOG(H94)-INT(LOG(H94)))*100),E96_s:E96_f,1),VLOOKUP((10^(LOG(H94)-INT(LOG(H94)))*100),E96_s:E96_f,2)))*10^INT(LOG(H94))/100 -> 0.549 | J94: =R_2k/(R_2k+R_1k)/(BIN_3/100) -> 0.8333333333
A95: *The results from this design tool serve as a guideline for components selection. However, these results are based on ideal conditions when the circuit is in steady state and in CCM mode. It may not reflect real circuit performance.

Sheet Efficiency
A1: INSTRUCTIONS: No values need to be entered here, all values are derived from the DESIGN tab
AA2: 0
A3: If iteration error occurs, please set 'Reset' to 1 and then 0 | M3: Reset= | N3: 0 | P3: If not in normal operation, the calculation result is not valid | AA3: 1
B4: =IOUT -> 0.7 | D4: =IF($I$4="None",VOUT,VOUT-V_cs+VLOOKUP($I$4,Design!A90:F93,6)) -> 6.4 | H4: Binning? | I4: BIN1
A5: T (°C) | B5: VIN | C5: VF | D5: Duty | E5: TON(ns) | F5: TOFF | G5: ΔIL | H5: PIQ | I5: Psw | J5: Pcond | K5: PDRIVER | L5: PIC | M5: PD1 | N5: PIND | O5: PSNUB | P5: PSENSE | Q5: TJD1 | R5: TJIC | S5: RDSon | T5: VOSAT | U5: VOUT | V5: PLOSS_tol | W5: POUT | X5: PIN | Y5: Efficiency | Z5: Operating Condition
A6: 25 | B6: =Design!B4 -> 10 | C6: =IF(RESET=1,VF,VF+(Q6-25)*Design!$B$16/1000) -> 0.4146236477 | D6: =IF(RESET=1,$D$4/B6,MIN(($D$4+C6+IOUT*DCR*(1+(R6-25)*TCR_Cu/100)/1000)/(B6-IOUT*S6/1000+C6),(Tsw-Min_tOFF_typ)/Tsw)) -> 0.6631993481 | E6: =IF(D6>=(Tsw-Min_tOFF_typ)/Tsw,Tsw-Min_tOFF_typ,IF(Tsw*D6>Constants!$C$19,Tsw*D6,Constants!$C$19)) -> 331.599674 | F6: =IF(E6=Constants!$C$19,Tsw-Constants!$C$19,IF(Tsw*(1-Efficiency!D6)>Min_tOFF_typ,Tsw*(1-Efficiency!D6),Min_tOFF_typ)) -> 168.400326 | G6: =(B6-VOUT)/(Lout*micro)*D6*Tsw*nano -> 0.3717935739 | H6: =B6*Iq*milli -> 0.05 | I6: =B6*$B$4*(B6/(Slew_rise*10^9)*fsw*10^6/2+B6/(Slew_fall*10^9)*fsw*10^6/2) -> 0.105 | J6: =(D6*($B$4^2+G6^2/12))*S6*10^-3 -> 0.05433581379 | K6: =Qg*10^-9*B6*fsw*10^6 -> 0.1 | L6: =SUM(H6:K6) -> 0.3093358138 | M6: =($B$4)*C6*(1-D6) -> 0.09775186038 | N6: =($B$4^2+G6^2/12)*DCR/1000+($B$4^2+G6^2/12)^2*DCR/1000*(R6-25)*(Constants!$C$32/100) -> 0.01152163734 | O6: =0.5*C_SNUB*10^-12*B6^2*fsw*10^6 -> 0.047 | P6: =IF($I$4="None",V_cs^2/RFB_1,VLOOKUP($I$4,Design!$A$90:$F$93,5)) -> 0.2097902098 | Q6: =$A6+M6*RthJA -> 30.37635232 | R6: =MIN(L6*RthJA_IC+$A6,190) -> 38.92011162 | S6: =IF(RESET=1,Rdson,Rdson+Rdson*TCR_RdsON/100*(Efficiency!R6-25)) -> 163.3633072 | T6: =(1-Min_tOFF_typ*10^-9*fsw*10^6) * (B6+C6-$B$4*S6/1000) - (C6+$B$4*DCR/1000) -> 7.809939818 | U6: =IF(T6>$D$4,$D$4,T6) -> 6.4 | V6: =SUM(L6:P6) -> 0.6753995213 | W6: =U6*$B$4 -> 4.48 | X6: =V6+W6 -> 5.155399521 | Y6: =W6/(W6+V6) -> 0.8689918175 | Z6: =IF(R6>Constants!$C$31,"TSD",IF(OR(E6=Constants!$C$19,Efficiency!F6=Min_tOFF_typ),IF(E6=Constants!$C$19,"Pulse Skip","Dropout"),"Normal")) -> Normal
A7: =25 -> 25 | B7: =($B$25-$B$6)/19+B6 -> 10.42105263 | C7: =IF(RESET=1,VF,VF+(Q7-25)*Design!$B$16/1000) -> 0.4142138323 | D7: 0.6371679104 | E7: =IF(F7=Min_tOFF_typ,Tsw-Min_tOFF_typ,IF(Tsw*Efficiency!D7>Constants!$C$19,Tsw*Efficiency!D7,Constants!$C$19)) -> 318.5839552 | F7: =IF(E7=Constants!$C$19,Tsw-Constants!$C$19,IF(Tsw*(1-Efficiency!D7)>Min_tOFF_typ,Tsw*(1-Efficiency!D7),Min_tOFF_typ)) -> 181.4160448 | G7: 0.3978488627 | H7: 0.05210526316 | I7: 0.1140282548 | J7: =(D7*($B$4^2+G7^2/12))*S7*10^-3 -> 0.05256500545 | K7: 0.1042105263 | L7: =SUM(H7:K7) -> 0.3229090498 | M7: =($B$4)*C7*(1-D7) -> 0.1052030492 | N7: =($B$4^2+G7^2/12)*DCR/1000+($B$4^2+G7^2/12)^2*DCR/1000*(R7-A7)*(Constants!$C$32/100) -> 0.01157464717 | O7: 0.05104121884 | P7: =IF($I$4="None",V_cs^2/RFB_1,VLOOKUP($I$4,Design!$A$90:$F$93,5)) -> 0.2097902098 | Q7: 30.78616771 | R7: 39.53090724 | S7: =IF(RESET=1,Rdson,Rdson+Rdson*TCR_RdsON/100*(Efficiency!R7-25)) -> 163.949671 | T7: 8.146535523 | U7: =IF(T7>$D$4,$D$4,T7) -> 6.4 | V7: =SUM(L7:P7) -> 0.7005181748 | W7: 4.48 | X7: =V7+W7 -> 5.180518175 | Y7: 0.8647783578 | Z7: =IF(R7>Constants!$C$31,"TSD",IF(OR(E7=Constants!$C$19,Efficiency!F7=Min_tOFF_typ),IF(E7=Constants!$C$19,"Pulse Skip","Dropout"),"Normal")) -> Normal
A8: =25 -> 25 | B8: =($B$25-$B$6)/19+B7 -> 10.84210526 | C8: =IF(RESET=1,VF,VF+(Q8-25)*Design!$B$16/1000) -> 0.4138356864 | D8: 0.6131023805 | E8: =IF(F8=Min_tOFF_typ,Tsw-Min_tOFF_typ,IF(Tsw*Efficiency!D8>Constants!$C$19,Tsw*Efficiency!D8,Constants!$C$19)) -> 306.5511903 | F8: =IF(E8=Constants!$C$19,Tsw-Constants!$C$19,IF(Tsw*(1-Efficiency!D8)>Min_tOFF_typ,Tsw*(1-Efficiency!D8),Min_tOFF_typ)) -> 193.4488097 | G8: 0.4219356893 | H8: 0.05421052632 | I8: 0.1234288089 | J8: 0.05093338053 | K8: 0.1084210526 | L8: 0.3369937683 | M8: 0.1120784293 | N8: =($B$4^2+G8^2/12)*DCR/1000+($B$4^2+G8^2/12)^2*DCR/1000*(R8-A8)*(Constants!$C$32/100) -> 0.01162775325 | O8: 0.05524908587 | P8: =IF($I$4="None",V_cs^2/RFB_1,VLOOKUP($I$4,Design!$A$90:$F$93,5)) -> 0.2097902098 | Q8: 31.16431361 | R8: 40.16471958 | S8: =IF(RESET=1,Rdson,Rdson+Rdson*TCR_RdsON/100*(Efficiency!R8-25)) -> 164.5581308 | T8: 8.48311252 | U8: 6.4 | V8: 0.7257392466 | W8: 4.48 | X8: 5.205739247 | Y8: 0.8605886288 | Z8: =IF(R8>Constants!$C$31,"TSD",IF(OR(E8=Constants!$C$19,Efficiency!F8=Min_tOFF_typ),IF(E8=Constants!$C$19,"Pulse Skip","Dropout"),"Normal")) -> Normal
A9: =25 -> 25 | B9: 11.26315789 | C9: =IF(RESET=1,VF,VF+(Q9-25)*Design!$B$16/1000) -> 0.413485678 | D9: 0.5907883208 | E9: =IF(F9=Min_tOFF_typ,Tsw-Min_tOFF_typ,IF(Tsw*Efficiency!D9>Constants!$C$19,Tsw*Efficiency!D9,Constants!$C$19)) -> 295.3941604 | F9: =IF(E9=Constants!$C$19,Tsw-Constants!$C$19,IF(Tsw*(1-Efficiency!D9)>Min_tOFF_typ,Tsw*(1-Efficiency!D9),Min_tOFF_typ)) -> 204.6058396 | G9: 0.4442690483 | H9: 0.05631578947 | I9: 0.133201662 | J9: 0.04942482721 | K9: 0.1126315789 | L9: 0.3515738577 | M9: 0.118442218 | N9: =($B$4^2+G9^2/12)*DCR/1000+($B$4^2+G9^2/12)^2*DCR/1000*(R9-A9)*(Constants!$C$32/100) -> 0.01168076035 | O9: 0.05962360111 | P9: =IF($I$4="None",V_cs^2/RFB_1,VLOOKUP($I$4,Design!$A$90:$F$93,5)) -> 0.2097902098 | Q9: 31.51432199 | R9: 40.8208236 | S9: =IF(RESET=1,Rdson,Rdson+Rdson*TCR_RdsON/100*(Efficiency!R9-25)) -> 165.1879907 | T9: 8.819671905 | U9: 6.4 | V9: 0.751110647 | W9: 4.48 | X9: 5.231110647 | Y9: 0.8564146894 | Z9: =IF(R9>Constants!$C$31,"TSD",IF(OR(E9=Constants!$C$19,Efficiency!F9=Min_tOFF_typ),IF(E9=Constants!$C$19,"Pulse Skip","Dropout"),"Normal")) -> Normal
A10: =25 -> 25 | B10: 11.68421053 | C10: =IF(RESET=1,VF,VF+(Q10-25)*Design!$B$16/1000) -> 0.4131607813 | D10: 0.5700413671 | E10: =IF(F10=Min_tOFF_typ,Tsw-Min_tOFF_typ,IF(Tsw*Efficiency!D10>Constants!$C$19,Tsw*Efficiency!D10,Constants!$C$19)) -> 285.0206835 | F10: =IF(E10=Constants!$C$19,Tsw-Constants!$C$19,IF(Tsw*(1-Efficiency!D10)>Min_tOFF_typ,Tsw*(1-Efficiency!D10),Min_tOFF_typ)) -> 214.9793165 | G10: 0.4650337468 | H10: 0.05842105263 | I10: 0.1433468144 | J10: 0.04802574809 | K10: 0.1168421053 | L10: 0.3666357204 | M10: 0.1243494313 | N10: =($B$4^2+G10^2/12)*DCR/1000+($B$4^2+G10^2/12)^2*DCR/1000*(R10-A10)*(Constants!$C$32/100) -> 0.01173353344 | O10: 0.06416476454 | P10: =IF($I$4="None",V_cs^2/RFB_1,VLOOKUP($I$4,Design!$A$90:$F$93,5)) -> 0.2097902098 | Q10: 31.83921872 | R10: 41.49860742 | S10: =IF(RESET=1,Rdson,Rdson+Rdson*TCR_RdsON/100*(Efficiency!R10-25)) -> 165.8386631 | T10: 9.156214613 | U10: 6.4 | V10: 0.7766736595 | W10: 4.48 | X10: 5.256673659 | Y10: 0.852249976 | Z10: =IF(R10>Constants!$C$31,"TSD",IF(OR(E10=Constants!$C$19,Efficiency!F10=Min_tOFF_typ),IF(E10=Constants!$C$19,"Pulse Skip","Dropout"),"Normal")) -> Normal
A11: =25 -> 25 | B11: 12.10526316 | C11: =IF(RESET=1,VF,VF+(Q11-25)*Design!$B$16/1000) -> 0.4128583889 | D11: 0.5507021384 | E11: =IF(F11=Min_tOFF_typ,Tsw-Min_tOFF_typ,IF(Tsw*Efficiency!D11>Constants!$C$19,Tsw*Efficiency!D11,Constants!$C$19)) -> 275.3510692 | F11: =IF(E11=Constants!$C$19,Tsw-Constants!$C$19,IF(Tsw*(1-Efficiency!D11)>Min_tOFF_typ,Tsw*(1-Efficiency!D11),Min_tOFF_typ)) -> 224.6489308 | G11: 0.4843895204 | H11: 0.06052631579 | I11: 0.1538642659 | J11: 0.04672457189 | K11: 0.1210526316 | L11: 0.3821677852 | M11: 0.1298474739 | N11: =($B$4^2+G11^2/12)*DCR/1000+($B$4^2+G11^2/12)^2*DCR/1000*(R11-A11)*(Constants!$C$32/100) -> 0.01178598205 | O11: 0.06887257618 | P11: =IF($I$4="None",V_cs^2/RFB_1,VLOOKUP($I$4,Design!$A$90:$F$93,5)) -> 0.2097902098 | Q11: 32.14161106 | R11: 42.19755033 | S11: =IF(RESET=1,Rdson,Rdson+Rdson*TCR_RdsON/100*(Efficiency!R11-25)) -> 166.5096483 | T11: 9.492741445 | U11: 6.4 | V11: 0.8024640271 | W11: 4.48 | X11: 5.282464027 | Y11: 0.8480890692 | Z11: =IF(R11>Constants!$C$31,"TSD",IF(OR(E11=Constants!$C$19,Efficiency!F11=Min_tOFF_typ),IF(E11=Constants!$C$19,"Pulse Skip","Dropout"),"Normal")) -> Normal
A12: =25 -> 25 | B12: 12.52631579 | C12: =IF(RESET=1,VF,VF+(Q12-25)*Design!$B$16/1000) -> 0.4125762424 | D12: 0.5326321461 | E12: =IF(F12=Min_tOFF_typ,Tsw-Min_tOFF_typ,IF(Tsw*Efficiency!D12>Constants!$C$19,Tsw*Efficiency!D12,Constants!$C$19)) -> 266.3160731 | F12: =IF(E12=Constants!$C$19,Tsw-Constants!$C$19,IF(Tsw*(1-Efficiency!D12)>Min_tOFF_typ,Tsw*(1-Efficiency!D12),Min_tOFF_typ)) -> 233.6839269 | G12: 0.5024751426 | H12: 0.06263157895 | I12: 0.1647540166 | J12: 0.04551137702 | K12: 0.1252631579 | L12: 0.3981601305 | M12: 0.1349774111 | N12: =($B$4^2+G12^2/12)*DCR/1000+($B$4^2+G12^2/12)^2*DCR/1000*(R12-A12)*(Constants!$C$32/100) -> 0.01183804871 | O12: 0.07374703601 | P12: =IF($I$4="None",V_cs^2/RFB_1,VLOOKUP($I$4,Design!$A$90:$F$93,5)) -> 0.2097902098 | Q12: 32.42375761 | R12: 42.91720587 | S12: =IF(RESET=1,Rdson,Rdson+Rdson*TCR_RdsON/100*(Efficiency!R12-25)) -> 167.2005176 | T12: 9.829253093 | U12: 6.4 | V12: 0.8285128361 | W12: 4.48 | X12: 5.308512836 | Y12: 0.8439275063 | Z12: =IF(R12>Constants!$C$31,"TSD",IF(OR(E12=Constants!$C$19,Efficiency!F12=Min_tOFF_typ),IF(E12=Constants!$C$19,"Pulse Skip","Dropout"),"Normal")) -> Normal
A13: =25 -> 25 | B13: 12.94736842 | C13: =IF(RESET=1,VF,VF+(Q13-25)*Design!$B$16/1000) -> 0.4123123754 | D13: 0.5157104811 | E13: =IF(F13=Min_tOFF_typ,Tsw-Min_tOFF_typ,IF(Tsw*Efficiency!D13>Constants!$C$19,Tsw*Efficiency!D13,Constants!$C$19)) -> 257.8552406 | F13: =IF(E13=Constants!$C$19,Tsw-Constants!$C$19,IF(Tsw*(1-Efficiency!D13)>Min_tOFF_typ,Tsw*(1-Efficiency!D13),Min_tOFF_typ)) -> 242.1447594 | G13: 0.5194117525 | H13: 0.06473684211 | I13: 0.1760160665 | J13: 0.04437759771 | K13: 0.1294736842 | L13: 0.4146041905 | M13: 0.1397749933 | N13: =($B$4^2+G13^2/12)*DCR/1000+($B$4^2+G13^2/12)^2*DCR/1000*(R13-A13)*(Constants!$C$32/100) -> 0.01188970048 | O13: 0.07878814404 | P13: =IF($I$4="None",V_cs^2/RFB_1,VLOOKUP($I$4,Design!$A$90:$F$93,5)) -> 0.2097902098 | Q13: 32.68762463 | R13: 43.65718857 | S13: =IF(RESET=1,Rdson,Rdson+Rdson*TCR_RdsON/100*(Efficiency!R13-25)) -> 167.910901 | T13: 10.16575016 | U13: 6.4 | V13: 0.8548472382 | W13: 4.48 | X13: 5.334847238 | Y13: 0.8397616277 | Z13: =IF(R13>Constants!$C$31,"TSD",IF(OR(E13=Constants!$C$19,Efficiency!F13=Min_tOFF_typ),IF(E13=Constants!$C$19,"Pulse Skip","Dropout"),"Normal")) -> Normal
A14: =25 -> 25 | B14: 13.36842105 | C14: =IF(RESET=1,VF,VF+(Q14-25)*Design!$B$16/1000) -> 0.4120650681 | D14: 0.4998311114 | E14: =IF(F14=Min_tOFF_typ,Tsw-Min_tOFF_typ,IF(Tsw*Efficiency!D14>Constants!$C$19,Tsw*Efficiency!D14,Constants!$C$19)) -> 249.9155557 | F14: =IF(E14=Constants!$C$19,Tsw-Constants!$C$19,IF(Tsw*(1-Efficiency!D14)>Min_tOFF_typ,Tsw*(1-Efficiency!D14),Min_tOFF_typ)) -> 250.0844443 | G14: 0.5353055683 | H14: 0.06684210526 | I14: 0.1876504155 | J14: 0.04331579228 | K14: 0.1336842105 | L14: 0.4314925236 | M14: 0.144271489 | N14: =($B$4^2+G14^2/12)*DCR/1000+($B$4^2+G14^2/12)^2*DCR/1000*(R14-A14)*(Constants!$C$32/100) -> 0.01194092255 | O14: 0.08399590028 | P14: =IF($I$4="None",V_cs^2/RFB_1,VLOOKUP($I$4,Design!$A$90:$F$93,5)) -> 0.2097902098 | Q14: 32.93493189 | R14: 44.41716356 | S14: =IF(RESET=1,Rdson,Rdson+Rdson*TCR_RdsON/100*(Efficiency!R14-25)) -> 168.640477 | T14: 10.50223316 | U14: 6.4 | V14: 0.8814910452 | W14: 4.48 | X14: 5.361491045 | Y14: 0.8355884515 | Z14: =IF(R14>Constants!$C$31,"TSD",IF(OR(E14=Constants!$C$19,Efficiency!F14=Min_tOFF_typ),IF(E14=Constants!$C$19,"Pulse Skip","Dropout"),"Normal")) -> Normal
A15: =25 -> 25 | B15: 13.78947368 | C15: =IF(RESET=1,VF,VF+(Q15-25)*Design!$B$16/1000) -> 0.4118328099 | D15: 0.4849006634 | E15: =IF(F15=Min_tOFF_typ,Tsw-Min_tOFF_typ,IF(Tsw*Efficiency!D15>Constants!$C$19,Tsw*Efficiency!D15,Constants!$C$19)) -> 242.4503317 | F15: =IF(E15=Constants!$C$19,Tsw-Constants!$C$19,IF(Tsw*(1-Efficiency!D15)>Min_tOFF_typ,Tsw*(1-Efficiency!D15),Min_tOFF_typ)) -> 257.5496683 | G15: 0.5502501148 | H15: 0.06894736842 | I15: 0.1996570637 | J15: 0.04231945843 | K15: 0.1378947368 | L15: 0.4488186274 | M15: 0.148494365 | N15: =($B$4^2+G15^2/12)*DCR/1000+($B$4^2+G15^2/12)^2*DCR/1000*(R15-A15)*(Constants!$C$32/100) -> 0.01199171346 | O15: 0.08937030471 | P15: =IF($I$4="None",V_cs^2/RFB_1,VLOOKUP($I$4,Design!$A$90:$F$93,5)) -> 0.2097902098 | Q15: 33.16719008 | R15: 45.19683823 | S15: =IF(RESET=1,Rdson,Rdson+Rdson*TCR_RdsON/100*(Efficiency!R15-25)) -> 169.3889647 | T15: 10.83870257 | U15: 6.4 | V15: 0.9084652204 | W15: 4.48 | X15: 5.38846522 | Y15: 0.8314055704 | Z15: =IF(R15>Constants!$C$31,"TSD",IF(OR(E15=Constants!$C$19,Efficiency!F15=Min_tOFF_typ),IF(E15=Constants!$C$19,"Pulse Skip","Dropout"),"Normal")) -> Normal
A16: =25 -> 25 | B16: 14.21052632 | C16: =IF(RESET=1,VF,VF+(Q16-25)*Design!$B$16/1000) -> 0.4116142684 | D16: 0.4708365884 | E16: =IF(F16=Min_tOFF_typ,Tsw-Min_tOFF_typ,IF(Tsw*Efficiency!D16>Constants!$C$19,Tsw*Efficiency!D16,Constants!$C$19)) -> 235.4182942 | F16: =IF(E16=Constants!$C$19,Tsw-Constants!$C$19,IF(Tsw*(1-Efficiency!D16)>Min_tOFF_typ,Tsw*(1-Efficiency!D16),Min_tOFF_typ)) -> 264.5817058 | G16: 0.564328064 | H16: 0.07105263158 | I16: 0.2120360111 | J16: 0.04138288462 | K16: 0.1421052632 | L16: 0.4665767904 | M16: 0.1524678474 | N16: =($B$4^2+G16^2/12)*DCR/1000+($B$4^2+G16^2/12)^2*DCR/1000*(R16-A16)*(Constants!$C$32/100) -> 0.01204208157 | O16: 0.09491135734 | P16: =IF($I$4="None",V_cs^2/RFB_1,VLOOKUP($I$4,Design!$A$90:$F$93,5)) -> 0.2097902098 | Q16: 33.38573161 | R16: 45.99595557 | S16: =IF(RESET=1,Rdson,Rdson+Rdson*TCR_RdsON/100*(Efficiency!R16-25)) -> 170.1561173 | T16: 11.17515877 | U16: 6.4 | V16: 0.9357882865 | W16: 4.48 | X16: 5.415788287 | Y16: 0.8272110657 | Z16: =IF(R16>Constants!$C$31,"TSD",IF(OR(E16=Constants!$C$19,Efficiency!F16=Min_tOFF_typ),IF(E16=Constants!$C$19,"Pulse Skip","Dropout"),"Normal")) -> Normal
A17: =25 -> 25 | B17: 14.63157895 | C17: =IF(RESET=1,VF,VF+(Q17-25)*Design!$B$16/1000) -> 0.4114082638 | D17: 0.4575656387 | E17: =IF(F17=Min_tOFF_typ,Tsw-Min_tOFF_typ,IF(Tsw*Efficiency!D17>Constants!$C$19,Tsw*Efficiency!D17,Constants!$C$19)) -> 228.7828194 | F17: =IF(E17=Constants!$C$19,Tsw-Constants!$C$19,IF(Tsw*(1-Efficiency!D17)>Min_tOFF_typ,Tsw*(1-Efficiency!D17),Min_tOFF_typ)) -> 271.2171806 | G17: 0.577612764 | H17: 0.07315789474 | I17: 0.2247872576 | J17: 0.04050102954 | K17: 0.1463157895 | L17: 0.4847619714 | M17: 0.1562133852 | N17: =($B$4^2+G17^2/12)*DCR/1000+($B$4^2+G17^2/12)^2*DCR/1000*(R17-A17)*(Constants!$C$32/100) -> 0.01209204227 | O17: 0.1006190582 | P17: =IF($I$4="None",V_cs^2/RFB_1,VLOOKUP($I$4,Design!$A$90:$F$93,5)) -> 0.2097902098 | Q17: 33.59173618 | R17: 46.81428871 | S17: =IF(RESET=1,Rdson,Rdson+Rdson*TCR_RdsON/100*(Efficiency!R17-25)) -> 170.9417172 | T17: 11.51160214 | U17: 6.4 | V17: 0.9634766668 | W17: 4.48 | X17: 5.443476667 | Y17: 0.8230034359 | Z17: =IF(R17>Constants!$C$31,"TSD",IF(OR(E17=Constants!$C$19,Efficiency!F17=Min_tOFF_typ),IF(E17=Constants!$C$19,"Pulse Skip","Dropout"),"Normal")) -> Normal
A18: =25 -> 25 | B18: 15.05263158 | C18: =IF(RESET=1,VF,VF+(Q18-25)*Design!$B$16/1000) -> 0.4112137479 | D18: 0.4450225943 | E18: =IF(F18=Min_tOFF_typ,Tsw-Min_tOFF_typ,IF(Tsw*Efficiency!D18>Constants!$C$19,Tsw*Efficiency!D18,Constants!$C$19)) -> 222.5112972 | F18: =IF(E18=Constants!$C$19,Tsw-Constants!$C$19,IF(Tsw*(1-Efficiency!D18)>Min_tOFF_typ,Tsw*(1-Efficiency!D18),Min_tOFF_typ)) -> 277.4887028 | G18: 0.590169517 | H18: 0.07526315789 | I18: 0.2379108033 | J18: 0.03966942347 | K18: 0.1505263158 | L18: 0.5033697005 | M18: 0.1597500373 | N18: =($B$4^2+G18^2/12)*DCR/1000+($B$4^2+G18^2/12)^2*DCR/1000*(R18-A18)*(Constants!$C$32/100) -> 0.01214161601 | O18: 0.1064934072 | P18: =IF($I$4="None",V_cs^2/RFB_1,VLOOKUP($I$4,Design!$A$90:$F$93,5)) -> 0.2097902098 | Q18: 33.78625205 | R18: 47.65163652 | S18: =IF(RESET=1,Rdson,Rdson+Rdson*TCR_RdsON/100*(Efficiency!R18-25)) -> 171.7455711 | T18: 11.84803299 | U18: 6.4 | V18: 0.9915449708 | W18: 4.48 | X18: 5.471544971 | Y18: 0.8187815368 | Z18: =IF(R18>Constants!$C$31,"TSD",IF(OR(E18=Constants!$C$19,Efficiency!F18=Min_tOFF_typ),IF(E18=Constants!$C$19,"Pulse Skip","Dropout"),"Normal")) -> Normal
A19: =25 -> 25 | B19: 15.47368421 | C19: =IF(RESET=1,VF,VF+(Q19-25)*Design!$B$16/1000) -> 0.4110297862 | D19: 0.4331491925 | E19: =IF(F19=Min_tOFF_typ,Tsw-Min_tOFF_typ,IF(Tsw*Efficiency!D19>Constants!$C$19,Tsw*Efficiency!D19,Constants!$C$19)) -> 216.5745963 | F19: =IF(E19=Constants!$C$19,Tsw-Constants!$C$19,IF(Tsw*(1-Efficiency!D19)>Min_tOFF_typ,Tsw*(1-Efficiency!D19),Min_tOFF_typ)) -> 283.4254037 | G19: 0.6020566528 | H19: 0.07736842105 | I19: 0.2514066482 | J19: 0.03888408702 | K19: 0.1547368421 | L19: 0.5223959984 | M19: 0.1630947963 | N19: =($B$4^2+G19^2/12)*DCR/1000+($B$4^2+G19^2/12)^2*DCR/1000*(R19-A19)*(Constants!$C$32/100) -> 0.01219082669 | O19: 0.1125344044 | P19: =IF($I$4="None",V_cs^2/RFB_1,VLOOKUP($I$4,Design!$A$90:$F$93,5)) -> 0.2097902098 | Q19: 33.9702138 | R19: 48.50781993 | S19: =IF(RESET=1,Rdson,Rdson+Rdson*TCR_RdsON/100*(Efficiency!R19-25)) -> 172.5675071 | T19: 12.18445161 | U19: 6.4 | V19: 1.020006236 | W19: 4.48 | X19: 5.500006236 | Y19: 0.8145445311 | Z19: =IF(R19>Constants!$C$31,"TSD",IF(OR(E19=Constants!$C$19,Efficiency!F19=Min_tOFF_typ),IF(E19=Constants!$C$19,"Pulse Skip","Dropout"),"Normal")) -> Normal
A20: =25 -> 25 | B20: 15.89473684 | C20: =IF(RESET=1,VF,VF+(Q20-25)*Design!$B$16/1000) -> 0.4108555426 | D20: 0.4218932249 | E20: =IF(F20=Min_tOFF_typ,Tsw-Min_tOFF_typ,IF(Tsw*Efficiency!D20>Constants!$C$19,Tsw*Efficiency!D20,Constants!$C$19)) -> 210.9466125 | F20: =IF(E20=Constants!$C$19,Tsw-Constants!$C$19,IF(Tsw*(1-Efficiency!D20)>Min_tOFF_typ,Tsw*(1-Efficiency!D20),Min_tOFF_typ)) -> 289.0533875 | G20: 0.6133264346 | H20: 0.07947368421 | I20: 0.2652747922 | J20: 0.03814146366 | K20: 0.1589473684 | L20: 0.5418373085 | M20: 0.1662628609 | N20: =($B$4^2+G20^2/12)*DCR/1000+($B$4^2+G20^2/12)^2*DCR/1000*(R20-A20)*(Constants!$C$32/100) -> 0.01223970053 | O20: 0.1187420499 | P20: =IF($I$4="None",V_cs^2/RFB_1,VLOOKUP($I$4,Design!$A$90:$F$93,5)) -> 0.2097902098 | Q20: 34.14445735 | R20: 49.38267888 | S20: =IF(RESET=1,Rdson,Rdson+Rdson*TCR_RdsON/100*(Efficiency!R20-25)) -> 173.4073717 | T20: 12.52085824 | U20: 6.4 | V20: 1.04887213 | W20: 4.48 | X20: 5.52887213 | Y20: 0.8102918452 | Z20: =IF(R20>Constants!$C$31,"TSD",IF(OR(E20=Constants!$C$19,Efficiency!F20=Min_tOFF_typ),IF(E20=Constants!$C$19,"Pulse Skip","Dropout"),"Normal")) -> Normal
A21: =25 -> 25 | B21: 16.31578947 | C21: =IF(RESET=1,VF,VF+(Q21-25)*Design!$B$16/1000) -> 0.4106902673 | D21: 0.411207771 | E21: =IF(F21=Min_tOFF_typ,Tsw-Min_tOFF_typ,IF(Tsw*Efficiency!D21>Constants!$C$19,Tsw*Efficiency!D21,Constants!$C$19)) -> 205.6038855 | F21: =IF(E21=Constants!$C$19,Tsw-Constants!$C$19,IF(Tsw*(1-Efficiency!D21)>Min_tOFF_typ,Tsw*(1-Efficiency!D21),Min_tOFF_typ)) -> 294.3961145 | G21: 0.624025828 | H21: 0.08157894737 | I21: 0.2795152355 | J21: 0.03743836338 | K21: 0.1631578947 | L21: 0.5616904409 | M21: 0.1692678665 | N21: =($B$4^2+G21^2/12)*DCR/1000+($B$4^2+G21^2/12)^2*DCR/1000*(R21-A21)*(Constants!$C$32/100) -> 0.01228826514 | O21: 0.1251163435 | P21: =IF($I$4="None",V_cs^2/RFB_1,VLOOKUP($I$4,Design!$A$90:$F$93,5)) -> 0.2097902098 | Q21: 34.30973266 | R21: 50.27606984 | S21: =IF(RESET=1,Rdson,Rdson+Rdson*TCR_RdsON/100*(Efficiency!R21-25)) -> 174.265027 | T21: 12.85725311 | U21: 6.4 | V21: 1.078153126 | W21: 4.48 | X21: 5.558153126 | Y21: 0.8060231337 | Z21: =IF(R21>Constants!$C$31,"TSD",IF(OR(E21=Constants!$C$19,Efficiency!F21=Min_tOFF_typ),IF(E21=Constants!$C$19,"Pulse Skip","Dropout"),"Normal")) -> Normal
A22: =25 -> 25 | B22: 16.73684211 | C22: =IF(RESET=1,VF,VF+(Q22-25)*Design!$B$16/1000) -> 0.4105332855 | D22: 0.4010505456 | E22: =IF(F22=Min_tOFF_typ,Tsw-Min_tOFF_typ,IF(Tsw*Efficiency!D22>Constants!$C$19,Tsw*Efficiency!D22,Constants!$C$19)) -> 200.5252728 | F22: =IF(E22=Constants!$C$19,Tsw-Constants!$C$19,IF(Tsw*(1-Efficiency!D22)>Min_tOFF_typ,Tsw*(1-Efficiency!D22),Min_tOFF_typ)) -> 299.4747272 | G22: 0.6341971546 | H22: 0.08368421053 | I22: 0.2941279778 | J22: 0.03677191536 | K22: 0.1673684211 | L22: 0.5819525248 | M22: 0.1721220812 | N22: =($B$4^2+G22^2/12)*DCR/1000+($B$4^2+G22^2/12)^2*DCR/1000*(R22-A22)*(Constants!$C$32/100) -> 0.01233654891 | O22: 0.1316572853 | P22: =IF($I$4="None",V_cs^2/RFB_1,VLOOKUP($I$4,Design!$A$90:$F$93,5)) -> 0.2097902098 | Q22: 34.46671446 | R22: 51.18786361 | S22: =IF(RESET=1,Rdson,Rdson+Rdson*TCR_RdsON/100*(Efficiency!R22-25)) -> 175.1403491 | T22: 13.19363643 | U22: 6.4 | V22: 1.10785865 | W22: 4.48 | X22: 5.58785865 | Y22: 0.8017382473 | Z22: =IF(R22>Constants!$C$31,"TSD",IF(OR(E22=Constants!$C$19,Efficiency!F22=Min_tOFF_typ),IF(E22=Constants!$C$19,"Pulse Skip","Dropout"),"Normal")) -> Normal
A23: =25 -> 25 | B23: 17.15789474 | C23: =IF(RESET=1,VF,VF+(Q23-25)*Design!$B$16/1000) -> 0.4103839885 | D23: 0.3913833401 | E23: =IF(F23=Min_tOFF_typ,Tsw-Min_tOFF_typ,IF(Tsw*Efficiency!D23>Constants!$C$19,Tsw*Efficiency!D23,Constants!$C$19)) -> 195.6916701 | F23: =IF(E23=Constants!$C$19,Tsw-Constants!$C$19,IF(Tsw*(1-Efficiency!D23)>Min_tOFF_typ,Tsw*(1-Efficiency!D23),Min_tOFF_typ)) -> 304.3083299 | G23: 0.6438786528 | H23: 0.08578947368 | I23: 0.3091130194 | J23: 0.0361395279 | K23: 0.1715789474 | L23: 0.6026209683 | M23: 0.1748365726 | N23: =($B$4^2+G23^2/12)*DCR/1000+($B$4^2+G23^2/12)^2*DCR/1000*(R23-A23)*(Constants!$C$32/100) -> 0.01238458044 | O23: 0.1383648753 | P23: =IF($I$4="None",V_cs^2/RFB_1,VLOOKUP($I$4,Design!$A$90:$F$93,5)) -> 0.2097902098 | Q23: 34.6160115 | R23: 52.11794358 | S23: =IF(RESET=1,Rdson,Rdson+Rdson*TCR_RdsON/100*(Efficiency!R23-25)) -> 176.0332258 | T23: 13.53000839 | U23: 6.4 | V23: 1.137997207 | W23: 4.48 | X23: 5.617997207 | Y23: 0.7974372068 | Z23: =IF(R23>Constants!$C$31,"TSD",IF(OR(E23=Constants!$C$19,Efficiency!F23=Min_tOFF_typ),IF(E23=Constants!$C$19,"Pulse Skip","Dropout"),"Normal")) -> Normal
A24: =25 -> 25 | B24: 17.57894737 | C24: =IF(RESET=1,VF,VF+(Q24-25)*Design!$B$16/1000) -> 0.4102418257 | D24: 0.3821715434 | E24: =IF(F24=Min_tOFF_typ,Tsw-Min_tOFF_typ,IF(Tsw*Efficiency!D24>Constants!$C$19,Tsw*Efficiency!D24,Constants!$C$19)) -> 191.0857717 | F24: =IF(E24=Constants!$C$19,Tsw-Constants!$C$19,IF(Tsw*(1-Efficiency!D24)>Min_tOFF_typ,Tsw*(1-Efficiency!D24),Min_tOFF_typ)) -> 308.9142283 | G24: 0.6531049581 | H24: 0.08789473684 | I24: 0.3244703601 | J24: 0.03553885445 | K24: 0.1757894737 | L24: 0.6236934251 | M24: 0.1774213518 | N24: =($B$4^2+G24^2/12)*DCR/1000+($B$4^2+G24^2/12)^2*DCR/1000*(R24-A24)*(Constants!$C$32/100) -> 0.0124323882 | O24: 0.1452391136 | P24: =IF($I$4="None",V_cs^2/RFB_1,VLOOKUP($I$4,Design!$A$90:$F$93,5)) -> 0.2097902098 | Q24: 34.75817435 | R24: 53.06620413 | S24: =IF(RESET=1,Rdson,Rdson+Rdson*TCR_RdsON/100*(Efficiency!R24-25)) -> 176.943556 | T24: 13.86636914 | U24: 6.4 | V24: 1.168576488 | W24: 4.48 | X24: 5.648576488 | Y24: 0.7931201798 | Z24: =IF(R24>Constants!$C$31,"TSD",IF(OR(E24=Constants!$C$19,Efficiency!F24=Min_tOFF_typ),IF(E24=Constants!$C$19,"Pulse Skip","Dropout"),"Normal")) -> Normal
A25: =25 -> 25 | B25: =Design!$D$4 -> 18 | C25: =IF(RESET=1,VF,VF+(Q25-25)*Design!$B$16/1000) -> 0.4101062977 | D25: 0.3733837278 | E25: =IF(F25=Min_tOFF_typ,Tsw-Min_tOFF_typ,IF(Tsw*Efficiency!D25>Constants!$C$19,Tsw*Efficiency!D25,Constants!$C$19)) -> 186.6918639 | F25: =IF(E25=Constants!$C$19,Tsw-Constants!$C$19,IF(Tsw*(1-Efficiency!D25)>Min_tOFF_typ,Tsw*(1-Efficiency!D25),Min_tOFF_typ)) -> 313.3081361 | G25: 0.6619075175 | H25: 0.09 | I25: 0.3402 | J25: 0.03496776458 | K25: 0.18 | L25: 0.6451677646 | M25: 0.1798854956 | N25: =($B$4^2+G25^2/12)*DCR/1000+($B$4^2+G25^2/12)^2*DCR/1000*(R25-A25)*(Constants!$C$32/100) -> 0.01248000027 | O25: 0.15228 | P25: =IF($I$4="None",V_cs^2/RFB_1,VLOOKUP($I$4,Design!$A$90:$F$93,5)) -> 0.2097902098 | Q25: 34.89370226 | R25: 54.03254941 | S25: =IF(RESET=1,Rdson,Rdson+Rdson*TCR_RdsON/100*(Efficiency!R25-25)) -> 177.8712474 | T25: 14.20271884 | U25: 6.4 | V25: 1.19960347 | W25: 4.48 | X25: 5.67960347 | Y25: 0.7887874609 | Z25: =IF(R25>Constants!$C$31,"TSD",IF(OR(E25=Constants!$C$19,Efficiency!F25=Min_tOFF_typ),IF(E25=Constants!$C$19,"Pulse Skip","Dropout"),"Normal")) -> Normal
A26: =25 -> 25 | B26: =Vin_nom -> 13.5 | C26: =IF(RESET=1,VF,VF+(Q26-25)*Design!$B$16/1000) -> 0.4119909367 | D26: 0.4950674905 | E26: =IF(F26=Min_tOFF_typ,Tsw-Min_tOFF_typ,IF(Tsw*Efficiency!D26>Constants!$C$19,Tsw*Efficiency!D26,Constants!$C$19)) -> 247.5337453 | F26: =IF(E26=Constants!$C$19,Tsw-Constants!$C$19,IF(Tsw*(1-Efficiency!D26)>Min_tOFF_typ,Tsw*(1-Efficiency!D26),Min_tOFF_typ)) -> 252.4662547 | G26: 0.540073626 | H26: 0.0675 | I26: =B26*$B$4*(B26/(Slew_rise*10^9)*fsw*10^6/2+B26/(Slew_fall*10^9)*fsw*10^6/2) -> 0.1913625 | J26: =(D26*($B$4^2+G26^2/12))*S26*10^-3 -> 0.04299768777 | K26: 0.135 | L26: =SUM(H26:K26) -> 0.4368601878 | M26: 0.1456193323 | N26: =($B$4^2+G26^2/12)*DCR/1000+($B$4^2+G26^2/12)^2*DCR/1000*(R26-A26)*(Constants!$C$32/100) -> 0.0119568408 | O26: =0.5*C_SNUB*10^-12*B26^2*fsw*10^6 -> 0.0856575 | P26: =IF($I$4="None",V_cs^2/RFB_1,VLOOKUP($I$4,Design!$A$90:$F$93,5)) -> 0.2097902098 | Q26: =$A26+M26*RthJA -> 33.00906328 | R26: 44.65870845 | S26: =IF(RESET=1,Rdson,Rdson+Rdson*TCR_RdsON/100*(Efficiency!R26-25)) -> 168.8723601 | T26: 10.60738129 | U26: 6.4 | V26: =SUM(L26:P26) -> 0.8898840707 | W26: 4.48 | X26: 5.369884071 | Y26: 0.8342824428 | Z26: =IF(R26>Constants!$C$31,"TSD",IF(OR(E26=Constants!$C$19,Efficiency!F26=Min_tOFF_typ),IF(E26=Constants!$C$19,"Pulse Skip","Dropout"),"Normal")) -> Normal
A27: T (°C) | B27: VIN | C27: VF | D27: Duty | E27: TON(ns) | F27: TOFF | G27: ΔIL | H27: PIQ | I27: Psw | J27: Pcond | K27: PDRIVER | L27: PIC | M27: PD1 | N27: PIND | O27: PSNUB | P27: PSENSE | Q27: TJD1 | R27: TJIC | S27: RDSon | T27: VOSAT | U27: VOUT | V27: PLOSS_tol | W27: POUT | Y27: Efficiency | Z27: Operating Condition
A28: =Design!$D$13 -> 85 | B28: =Efficiency!B6 -> 10 | C28: =IF(RESET=1,VF,VF+(Q28-25)*Design!$B$16/1000) -> 0.3554061765 | D28: =IF(RESET=1,$D$4/B28,MIN(($D$4+C28+IOUT*DCR*(1+(R28-25)*TCR_Cu/100)/1000)/(B28-IOUT*S28/1000+C28),(Tsw-Min_tOFF_typ)/Tsw)) -> 0.6642711931 | E28: =IF(D28>=(Tsw-Min_tOFF_typ)/Tsw,Tsw-Min_tOFF_typ,IF(Tsw*D28>Constants!$C$19,Tsw*D28,Constants!$C$19)) -> 332.1355966 | F28: =IF(E28=Constants!$C$19,Tsw-Constants!$C$19,IF(Tsw*(1-Efficiency!D28)>Min_tOFF_typ,Tsw*(1-Efficiency!D28),Min_tOFF_typ)) -> 167.8644034 | G28: =(B28-VOUT)/(Lout*micro)*D28*Tsw*nano -> 0.3723944568 | H28: =B28*Iq*milli -> 0.05 | I28: =B28*$B$4*(B28/(Slew_rise*10^9)*fsw*10^6/2+B28/(Slew_fall*10^9)*fsw*10^6/2) -> 0.105 | J28: =(D28*($B$4^2+G28^2/12))*S28*10^-3 -> 0.07389982097 | K28: =Qg*10^-9*B28*fsw*10^6 -> 0.1 | L28: =SUM(H28:K28) -> 0.328899821 | M28: =($B$4)*C28*(1-D28) -> 0.08352406411 | N28: =($B$4^2+G28^2/12)*DCR/1000+($B$4^2+G28^2/12)^2*DCR/1000*(R28-25)*(Constants!$C$32/100) -> 0.01286831894 | O28: =0.5*C_SNUB*10^-12*B28^2*fsw*10^6 -> 0.047 | P28: =IF($I$4="None",V_cs^2/RFB_1,VLOOKUP($I$4,Design!$A$90:$F$93,5)) -> 0.2097902098 | Q28: =$A28+M28*RthJA -> 89.59382353 | R28: =MIN(L28*RthJA_IC+$A28,190) -> 99.80049194 | S28: =IF(RESET=1,Rdson,Rdson+Rdson*TCR_RdsON/100*(Efficiency!R28-25)) -> 221.8084723 | T28: =(1-Min_tOFF_typ*10^-9*fsw*10^6) * (B28+C28-$B$4*S28/1000) - (C28+$B$4*DCR/1000) -> 7.78905402 | U28: =IF(T28>$D$4,$D$4,T28) -> 6.4 | V28: =SUM(L28:P28) -> 0.6820824138 | W28: =U28*$B$4 -> 4.48 | X28: =V28+W28 -> 5.162082414 | Y28: =W28/(W28+V28) -> 0.8678668105 | Z28: =IF(R28>Constants!$C$31,"TSD",IF(OR(E28=Constants!$C$19,Efficiency!F28=Min_tOFF_typ),IF(E28=Constants!$C$19,"Pulse Skip","Dropout"),"Normal")) -> Normal
A29: =Design!$D$13 -> 85 | B29: =($B$25-$B$6)/19+B28 -> 10.42105263 | C29: =IF(RESET=1,VF,VF+(Q29-25)*Design!$B$16/1000) -> 0.3550510013 | D29: 0.6379522377 | E29: =IF(F29=Min_tOFF_typ,Tsw-Min_tOFF_typ,IF(Tsw*Efficiency!D29>Constants!$C$19,Tsw*Efficiency!D29,Constants!$C$19)) -> 318.9761188 | F29: =IF(E29=Constants!$C$19,Tsw-Constants!$C$19,IF(Tsw*(1-Efficiency!D29)>Min_tOFF_typ,Tsw*(1-Efficiency!D29),Min_tOFF_typ)) -> 181.0238812 | G29: 0.3983385982 | H29: 0.05210526316 | I29: 0.1140282548 | J29: =(D29*($B$4^2+G29^2/12))*S29*10^-3 -> 0.07138557377 | K29: 0.1042105263 | L29: =SUM(H29:K29) -> 0.3417296181 | M29: =($B$4)*C29*(1-D29) -> 0.08998179438 | N29: =($B$4^2+G29^2/12)*DCR/1000+($B$4^2+G29^2/12)^2*DCR/1000*(R29-25)*(Constants!$C$32/100) -> 0.01292943092 | O29: 0.05104121884 | P29: =IF($I$4="None",V_cs^2/RFB_1,VLOOKUP($I$4,Design!$A$90:$F$93,5)) -> 0.2097902098 | Q29: 89.94899869 | R29: 100.3778328 | S29: =IF(RESET=1,Rdson,Rdson+Rdson*TCR_RdsON/100*(Efficiency!R29-25)) -> 222.3627195 | T29: 8.125656782 | U29: =IF(T29>$D$4,$D$4,T29) -> 6.4 | V29: =SUM(L29:P29) -> 0.705472272 | W29: 4.48 | X29: =V29+W29 -> 5.185472272 | Y29: 0.8639521658 | Z29: =IF(R29>Constants!$C$31,"TSD",IF(OR(E29=Constants!$C$19,Efficiency!F29=Min_tOFF_typ),IF(E29=Constants!$C$19,"Pulse Skip","Dropout"),"Normal")) -> Normal
A30: =Design!$D$13 -> 85 | B30: =($B$25-$B$6)/19+B29 -> 10.84210526 | C30: =IF(RESET=1,VF,VF+(Q30-25)*Design!$B$16/1000) -> 0.3547235265 | D30: 0.6136392174 | E30: =IF(F30=Min_tOFF_typ,Tsw-Min_tOFF_typ,IF(Tsw*Efficiency!D30>Constants!$C$19,Tsw*Efficiency!D30,Constants!$C$19)) -> 306.8196087 | F30: =IF(E30=Constants!$C$19,Tsw-Constants!$C$19,IF(Tsw*(1-Efficiency!D30)>Min_tOFF_typ,Tsw*(1-Efficiency!D30),Min_tOFF_typ)) -> 193.1803913 | G30: 0.4223051392 | H30: 0.05421052632 | I30: 0.1234288089 | J30: 0.06906795966 | K30: 0.1084210526 | L30: 0.3551283475 | M30: 0.09593588152 | N30: =($B$4^2+G30^2/12)*DCR/1000+($B$4^2+G30^2/12)^2*DCR/1000*(R30-25)*(Constants!$C$32/100) -> 0.01299052785 | O30: 0.05524908587 | P30: =IF($I$4="None",V_cs^2/RFB_1,VLOOKUP($I$4,Design!$A$90:$F$93,5)) -> 0.2097902098 | Q30: 90.27647348 | R30: 100.9807756 | S30: =IF(RESET=1,Rdson,Rdson+Rdson*TCR_RdsON/100*(Efficiency!R30-25)) -> 222.9415446 | T30: 8.46224024 | U30: 6.4 | V30: 0.7290940525 | W30: 4.48 | X30: 5.209094053 | Y30: 0.860034385 | Z30: =IF(R30>Constants!$C$31,"TSD",IF(OR(E30=Constants!$C$19,Efficiency!F30=Min_tOFF_typ),IF(E30=Constants!$C$19,"Pulse Skip","Dropout"),"Normal")) -> Normal
A31: =Design!$D$13 -> 85 | B31: 11.26315789 | C31: =IF(RESET=1,VF,VF+(Q31-25)*Design!$B$16/1000) -> 0.3544206349 | D31: 0.591111352 | E31: =IF(F31=Min_tOFF_typ,Tsw-Min_tOFF_typ,IF(Tsw*Efficiency!D31>Constants!$C$19,Tsw*Efficiency!D31,Constants!$C$19)) -> 295.555676 | F31: =IF(E31=Constants!$C$19,Tsw-Constants!$C$19,IF(Tsw*(1-Efficiency!D31)>Min_tOFF_typ,Tsw*(1-Efficiency!D31),Min_tOFF_typ)) -> 204.444324 | G31: 0.4445119657 | H31: 0.05631578947 | I31: 0.133201662 | J31: 0.06692408675 | K31: 0.1126315789 | L31: 0.3690731172 | M31: 0.101443002 | N31: =($B$4^2+G31^2/12)*DCR/1000+($B$4^2+G31^2/12)^2*DCR/1000*(R31-25)*(Constants!$C$32/100) -> 0.01305137177 | O31: 0.05962360111 | P31: =IF($I$4="None",V_cs^2/RFB_1,VLOOKUP($I$4,Design!$A$90:$F$93,5)) -> 0.2097902098 | Q31: 90.57936511 | R31: 101.6082903 | S31: =IF(RESET=1,Rdson,Rdson+Rdson*TCR_RdsON/100*(Efficiency!R31-25)) -> 223.5439587 | T31: 8.798805572 | U31: 6.4 | V31: 0.7529813018 | W31: 4.48 | X31: 5.232981302 | Y31: 0.8561085434 | Z31: =IF(R31>Constants!$C$31,"TSD",IF(OR(E31=Constants!$C$19,Efficiency!F31=Min_tOFF_typ),IF(E31=Constants!$C$19,"Pulse Skip","Dropout"),"Normal")) -> Normal
A32: =Design!$D$13 -> 85 | B32: 11.68421053 | C32: =IF(RESET=1,VF,VF+(Q32-25)*Design!$B$16/1000) -> 0.3541396598 | D32: 0.5701790988 | E32: =IF(F32=Min_tOFF_typ,Tsw-Min_tOFF_typ,IF(Tsw*Efficiency!D32>Constants!$C$19,Tsw*Efficiency!D32,Constants!$C$19)) -> 285.0895494 | F32: =IF(E32=Constants!$C$19,Tsw-Constants!$C$19,IF(Tsw*(1-Efficiency!D32)>Min_tOFF_typ,Tsw*(1-Efficiency!D32),Min_tOFF_typ)) -> 214.9104506 | G32: 0.4651461069 | H32: 0.05842105263 | I32: 0.1433468144 | J32: 0.06493465213 | K32: 0.1168421053 | L32: 0.3835446244 | M32: 0.1065516394 | N32: =($B$4^2+G32^2/12)*DCR/1000+($B$4^2+G32^2/12)^2*DCR/1000*(R32-25)*(Constants!$C$32/100) -> 0.01311179871 | O32: 0.06416476454 | P32: =IF($I$4="None",V_cs^2/RFB_1,VLOOKUP($I$4,Design!$A$90:$F$93,5)) -> 0.2097902098 | Q32: 90.86034017 | R32: 102.2595081 | S32: =IF(RESET=1,Rdson,Rdson+Rdson*TCR_RdsON/100*(Efficiency!R32-25)) -> 224.1691278 | T32: 9.135353778 | U32: 6.4 | V32: 0.7771630369 | W32: 4.48 | X32: 5.257163037 | Y32: 0.852170642 | Z32: =IF(R32>Constants!$C$31,"TSD",IF(OR(E32=Constants!$C$19,Efficiency!F32=Min_tOFF_typ),IF(E32=Constants!$C$19,"Pulse Skip","Dropout"),"Normal")) -> Normal
A33: =Design!$D$13 -> 85 | B33: 12.10526316 | C33: =IF(RESET=1,VF,VF+(Q33-25)*Design!$B$16/1000) -> 0.3538783068 | D33: 0.5506788193 | E33: =IF(F33=Min_tOFF_typ,Tsw-Min_tOFF_typ,IF(Tsw*Efficiency!D33>Constants!$C$19,Tsw*Efficiency!D33,Constants!$C$19)) -> 275.3394096 | F33: =IF(E33=Constants!$C$19,Tsw-Constants!$C$19,IF(Tsw*(1-Efficiency!D33)>Min_tOFF_typ,Tsw*(1-Efficiency!D33),Min_tOFF_typ)) -> 224.6605904 | G33: 0.4843690093 | H33: 0.06052631579 | I33: 0.1538642659 | J33: 0.06308324198 | K33: 0.1210526316 | L33: 0.3985264553 | M33: 0.111303513 | N33: =($B$4^2+G33^2/12)*DCR/1000+($B$4^2+G33^2/12)^2*DCR/1000*(R33-25)*(Constants!$C$32/100) -> 0.01317169936 | O33: 0.06887257618 | P33: =IF($I$4="None",V_cs^2/RFB_1,VLOOKUP($I$4,Design!$A$90:$F$93,5)) -> 0.2097902098 | Q33: 91.12169322 | R33: 102.9336905 | S33: =IF(RESET=1,Rdson,Rdson+Rdson*TCR_RdsON/100*(Efficiency!R33-25)) -> 224.8163429 | T33: 9.471885713 | U33: 6.4 | V33: 0.8016644537 | W33: 4.48 | X33: 5.281664454 | Y33: 0.8482174586 | Z33: =IF(R33>Constants!$C$31,"TSD",IF(OR(E33=Constants!$C$19,Efficiency!F33=Min_tOFF_typ),IF(E33=Constants!$C$19,"Pulse Skip","Dropout"),"Normal")) -> Normal
A34: =Design!$D$13 -> 85 | B34: 12.52631579 | C34: =IF(RESET=1,VF,VF+(Q34-25)*Design!$B$16/1000) -> 0.3536345906 | D34: 0.5324685017 | E34: =IF(F34=Min_tOFF_typ,Tsw-Min_tOFF_typ,IF(Tsw*Efficiency!D34>Constants!$C$19,Tsw*Efficiency!D34,Constants!$C$19)) -> 266.2342508 | F34: =IF(E34=Constants!$C$19,Tsw-Constants!$C$19,IF(Tsw*(1-Efficiency!D34)>Min_tOFF_typ,Tsw*(1-Efficiency!D34),Min_tOFF_typ)) -> 233.7657492 | G34: 0.5023207636 | H34: 0.06263157895 | I34: 0.1647540166 | J34: 0.06135579256 | K34: 0.1252631579 | L34: 0.414004546 | M34: 0.115734717 | N34: =($B$4^2+G34^2/12)*DCR/1000+($B$4^2+G34^2/12)^2*DCR/1000*(R34-25)*(Constants!$C$32/100) -> 0.01323100485 | O34: 0.07374703601 | P34: =IF($I$4="None",V_cs^2/RFB_1,VLOOKUP($I$4,Design!$A$90:$F$93,5)) -> 0.2097902098 | Q34: 91.36540943 | R34: 103.6302046 | S34: =IF(RESET=1,Rdson,Rdson+Rdson*TCR_RdsON/100*(Efficiency!R34-25)) -> 225.4849964 | T34: 9.808402115 | U34: 6.4 | V34: 0.8265075137 | W34: 4.48 | X34: 5.306507514 | Y34: 0.8442464254 | Z34: =IF(R34>Constants!$C$31,"TSD",IF(OR(E34=Constants!$C$19,Efficiency!F34=Min_tOFF_typ),IF(E34=Constants!$C$19,"Pulse Skip","Dropout"),"Normal")) -> Normal
A35: =Design!$D$13 -> 85 | B35: 12.94736842 | C35: =IF(RESET=1,VF,VF+(Q35-25)*Design!$B$16/1000) -> 0.353406785 | D35: 0.5154243042 | E35: =IF(F35=Min_tOFF_typ,Tsw-Min_tOFF_typ,IF(Tsw*Efficiency!D35>Constants!$C$19,Tsw*Efficiency!D35,Constants!$C$19)) -> 257.7121521 | F35: =IF(E35=Constants!$C$19,Tsw-Constants!$C$19,IF(Tsw*(1-Efficiency!D35)>Min_tOFF_typ,Tsw*(1-Efficiency!D35),Min_tOFF_typ)) -> 242.2878479 | G35: 0.5191235217 | H35: 0.06473684211 | I35: 0.1760160665 | J35: 0.05974017007 | K35: 0.1294736842 | L35: 0.4299667629 | M35: 0.1198766371 | N35: =($B$4^2+G35^2/12)*DCR/1000+($B$4^2+G35^2/12)^2*DCR/1000*(R35-25)*(Constants!$C$32/100) -> 0.01328967622 | O35: 0.07878814404 | P35: =IF($I$4="None",V_cs^2/RFB_1,VLOOKUP($I$4,Design!$A$90:$F$93,5)) -> 0.2097902098 | Q35: 91.59321504 | R35: 104.3485043 | S35: =IF(RESET=1,Rdson,Rdson+Rdson*TCR_RdsON/100*(Efficiency!R35-25)) -> 226.1745642 | T35: 10.14490362 | U35: 6.4 | V35: 0.85171143 | W35: 4.48 | X35: 5.33171143 | Y35: 0.8402555275 | Z35: =IF(R35>Constants!$C$31,"TSD",IF(OR(E35=Constants!$C$19,Efficiency!F35=Min_tOFF_typ),IF(E35=Constants!$C$19,"Pulse Skip","Dropout"),"Normal")) -> Normal
A36: =Design!$D$13 -> 85 | B36: 13.36842105 | C36: =IF(RESET=1,VF,VF+(Q36-25)*Design!$B$16/1000) -> 0.3531933818 | D36: 0.4994377398 | E36: =IF(F36=Min_tOFF_typ,Tsw-Min_tOFF_typ,IF(Tsw*Efficiency!D36>Constants!$C$19,Tsw*Efficiency!D36,Constants!$C$19)) -> 249.7188699 | F36: =IF(E36=Constants!$C$19,Tsw-Constants!$C$19,IF(Tsw*(1-Efficiency!D36)>Min_tOFF_typ,Tsw*(1-Efficiency!D36),Min_tOFF_typ)) -> 250.2811301 | G36: 0.534884278 | H36: 0.06684210526 | I36: 0.1876504155 | J36: 0.05822583961 | K36: 0.1336842105 | L36: 0.4464025709 | M36: 0.1237566942 | N36: =($B$4^2+G36^2/12)*DCR/1000+($B$4^2+G36^2/12)^2*DCR/1000*(R36-25)*(Constants!$C$32/100) -> 0.01334769663 | O36: 0.08399590028 | P36: =IF($I$4="None",V_cs^2/RFB_1,VLOOKUP($I$4,Design!$A$90:$F$93,5)) -> 0.2097902098 | Q36: 91.80661818 | R36: 105.0881157 | S36: =IF(RESET=1,Rdson,Rdson+Rdson*TCR_RdsON/100*(Efficiency!R36-25)) -> 226.8845911 | T36: 10.48139079 | U36: 6.4 | V36: 0.8772930718 | W36: 4.48 | X36: 5.357293072 | Y36: 0.8362432183 | Z36: =IF(R36>Constants!$C$31,"TSD",IF(OR(E36=Constants!$C$19,Efficiency!F36=Min_tOFF_typ),IF(E36=Constants!$C$19,"Pulse Skip","Dropout"),"Normal")) -> Normal
A37: =Design!$D$13 -> 85 | B37: 13.78947368 | C37: =IF(RESET=1,VF,VF+(Q37-25)*Design!$B$16/1000) -> 0.3529930577 | D37: 0.4844133692 | E37: =IF(F37=Min_tOFF_typ,Tsw-Min_tOFF_typ,IF(Tsw*Efficiency!D37>Constants!$C$19,Tsw*Efficiency!D37,Constants!$C$19)) -> 242.2066846 | F37: =IF(E37=Constants!$C$19,Tsw-Constants!$C$19,IF(Tsw*(1-Efficiency!D37)>Min_tOFF_typ,Tsw*(1-Efficiency!D37),Min_tOFF_typ)) -> 257.7933154 | G37: 0.5496971486 | H37: 0.06894736842 | I37: 0.1996570637 | J37: 0.05680360147 | K37: 0.1378947368 | L37: 0.4633027704 | M37: 0.1273989509 | N37: =($B$4^2+G37^2/12)*DCR/1000+($B$4^2+G37^2/12)^2*DCR/1000*(R37-25)*(Constants!$C$32/100) -> 0.01340506547 | O37: 0.08937030471 | P37: =IF($I$4="None",V_cs^2/RFB_1,VLOOKUP($I$4,Design!$A$90:$F$93,5)) -> 0.2097902098 | Q37: 92.0069423 | R37: 105.8486247 | S37: =IF(RESET=1,Rdson,Rdson+Rdson*TCR_RdsON/100*(Efficiency!R37-25)) -> 227.6146797 | T37: 10.81786412 | U37: 6.4 | V37: 0.9032673013 | W37: 4.48 | X37: 5.383267301 | Y37: 0.8322083503 | Z37: =IF(R37>Constants!$C$31,"TSD",IF(OR(E37=Constants!$C$19,Efficiency!F37=Min_tOFF_typ),IF(E37=Constants!$C$19,"Pulse Skip","Dropout"),"Normal")) -> Normal
A38: =Design!$D$13 -> 85 | B38: 14.21052632 | C38: =IF(RESET=1,VF,VF+(Q38-25)*Design!$B$16/1000) -> 0.3528046464 | D38: 0.4702668968 | E38: =IF(F38=Min_tOFF_typ,Tsw-Min_tOFF_typ,IF(Tsw*Efficiency!D38>Constants!$C$19,Tsw*Efficiency!D38,Constants!$C$19)) -> 235.1334484 | F38: =IF(E38=Constants!$C$19,Tsw-Constants!$C$19,IF(Tsw*(1-Efficiency!D38)>Min_tOFF_typ,Tsw*(1-Efficiency!D38),Min_tOFF_typ)) -> 264.8665516 | G38: 0.5636452519 | H38: 0.07105263158 | I38: 0.2120360111 | J38: 0.05546537929 | K38: 0.1421052632 | L38: 0.4806592851 | M38: 0.1308246101 | N38: =($B$4^2+G38^2/12)*DCR/1000+($B$4^2+G38^2/12)^2*DCR/1000*(R38-25)*(Constants!$C$32/100) -> 0.01346179399 | O38: 0.09491135734 | P38: =IF($I$4="None",V_cs^2/RFB_1,VLOOKUP($I$4,Design!$A$90:$F$93,5)) -> 0.2097902098 | Q38: 92.19535356 | R38: 106.6296678 | S38: =IF(RESET=1,Rdson,Rdson+Rdson*TCR_RdsON/100*(Efficiency!R38-25)) -> 228.3644811 | T38: 11.15432401 | U38: 6.4 | V38: 0.9296472564 | W38: 4.48 | X38: 5.409647256 | Y38: 0.8281501155 | Z38: =IF(R38>Constants!$C$31,"TSD",IF(OR(E38=Constants!$C$19,Efficiency!F38=Min_tOFF_typ),IF(E38=Constants!$C$19,"Pulse Skip","Dropout"),"Normal")) -> Normal
A39: =Design!$D$13 -> 85 | B39: 14.63157895 | C39: =IF(RESET=1,VF,VF+(Q39-25)*Design!$B$16/1000) -> 0.3526271165 | D39: 0.4569235914 | E39: =IF(F39=Min_tOFF_typ,Tsw-Min_tOFF_typ,IF(Tsw*Efficiency!D39>Constants!$C$19,Tsw*Efficiency!D39,Constants!$C$19)) -> 228.4617957 | F39: =IF(E39=Constants!$C$19,Tsw-Constants!$C$19,IF(Tsw*(1-Efficiency!D39)>Min_tOFF_typ,Tsw*(1-Efficiency!D39),Min_tOFF_typ)) -> 271.5382043 | G39: 0.5768022688 | H39: 0.07315789474 | I39: 0.2247872576 | J39: 0.05420404821 | K39: 0.1463157895 | L39: 0.49846499 | M39: 0.1340524276 | N39: =($B$4^2+G39^2/12)*DCR/1000+($B$4^2+G39^2/12)^2*DCR/1000*(R39-25)*(Constants!$C$32/100) -> 0.01351790198 | O39: 0.1006190582 | P39: =IF($I$4="None",V_cs^2/RFB_1,VLOOKUP($I$4,Design!$A$90:$F$93,5)) -> 0.2097902098 | Q39: 92.37288352 | R39: 107.4309246 | S39: =IF(RESET=1,Rdson,Rdson+Rdson*TCR_RdsON/100*(Efficiency!R39-25)) -> 229.1336876 | T39: 11.49077087 | U39: 6.4 | V39: 0.9564445876 | W39: 4.48 | X39: 5.436444588 | Y39: 0.8240679966 | Z39: =IF(R39>Constants!$C$31,"TSD",IF(OR(E39=Constants!$C$19,Efficiency!F39=Min_tOFF_typ),IF(E39=Constants!$C$19,"Pulse Skip","Dropout"),"Normal")) -> Normal
A40: =Design!$D$13 -> 85 | B40: 15.05263158 | C40: =IF(RESET=1,VF,VF+(Q40-25)*Design!$B$16/1000) -> 0.352459552 | D40: 0.4443169669 | E40: =IF(F40=Min_tOFF_typ,Tsw-Min_tOFF_typ,IF(Tsw*Efficiency!D40>Constants!$C$19,Tsw*Efficiency!D40,Constants!$C$19)) -> 222.1584834 | F40: =IF(E40=Constants!$C$19,Tsw-Constants!$C$19,IF(Tsw*(1-Efficiency!D40)>Min_tOFF_typ,Tsw*(1-Efficiency!D40),Min_tOFF_typ)) -> 277.8415166 | G40: 0.5892337448 | H40: 0.07526315789 | I40: 0.2379108033 | J40: 0.05301329441 | K40: 0.1505263158 | L40: 0.5167135714 | M40: 0.137099055 | N40: =($B$4^2+G40^2/12)*DCR/1000+($B$4^2+G40^2/12)^2*DCR/1000*(R40-25)*(Constants!$C$32/100) -> 0.01357341527 | O40: 0.1064934072 | P40: =IF($I$4="None",V_cs^2/RFB_1,VLOOKUP($I$4,Design!$A$90:$F$93,5)) -> 0.2097902098 | Q40: 92.54044803 | R40: 108.2521107 | S40: =IF(RESET=1,Rdson,Rdson+Rdson*TCR_RdsON/100*(Efficiency!R40-25)) -> 229.9220263 | T40: 11.82720502 | U40: 6.4 | V40: 0.9836696587 | W40: 4.48 | X40: 5.463669659 | Y40: 0.8199617253 | Z40: =IF(R40>Constants!$C$31,"TSD",IF(OR(E40=Constants!$C$19,Efficiency!F40=Min_tOFF_typ),IF(E40=Constants!$C$19,"Pulse Skip","Dropout"),"Normal")) -> Normal
A41: =Design!$D$13 -> 85 | B41: 15.47368421 | C41: =IF(RESET=1,VF,VF+(Q41-25)*Design!$B$16/1000) -> 0.352301137 | D41: 0.4323876766 | E41: =IF(F41=Min_tOFF_typ,Tsw-Min_tOFF_typ,IF(Tsw*Efficiency!D41>Constants!$C$19,Tsw*Efficiency!D41,Constants!$C$19)) -> 216.1938383 | F41: =IF(E41=Constants!$C$19,Tsw-Constants!$C$19,IF(Tsw*(1-Efficiency!D41)>Min_tOFF_typ,Tsw*(1-Efficiency!D41),Min_tOFF_typ)) -> 283.8061617 | G41: 0.6009981821 | H41: 0.07736842105 | I41: 0.2514066482 | J41: 0.05188749947 | K41: 0.1547368421 | L41: 0.5353994108 | M41: 0.1399793268 | N41: =($B$4^2+G41^2/12)*DCR/1000+($B$4^2+G41^2/12)^2*DCR/1000*(R41-25)*(Constants!$C$32/100) -> 0.01362836386 | O41: 0.1125344044 | P41: =IF($I$4="None",V_cs^2/RFB_1,VLOOKUP($I$4,Design!$A$90:$F$93,5)) -> 0.2097902098 | Q41: 92.69886298 | R41: 109.0929735 | S41: =IF(RESET=1,Rdson,Rdson+Rdson*TCR_RdsON/100*(Efficiency!R41-25)) -> 230.7292545 | T41: 12.16362676 | U41: 6.4 | V41: 1.011331716 | W41: 4.48 | X41: 5.491331716 | Y41: 0.8158312468 | Z41: =IF(R41>Constants!$C$31,"TSD",IF(OR(E41=Constants!$C$19,Efficiency!F41=Min_tOFF_typ),IF(E41=Constants!$C$19,"Pulse Skip","Dropout"),"Normal")) -> Normal
A42: =Design!$D$13 -> 85 | B42: 15.89473684 | C42: =IF(RESET=1,VF,VF+(Q42-25)*Design!$B$16/1000) -> 0.3521511424 | D42: 0.42108258 | E42: =IF(F42=Min_tOFF_typ,Tsw-Min_tOFF_typ,IF(Tsw*Efficiency!D42>Constants!$C$19,Tsw*Efficiency!D42,Constants!$C$19)) -> 210.54129 | F42: =IF(E42=Constants!$C$19,Tsw-Constants!$C$19,IF(Tsw*(1-Efficiency!D42)>Min_tOFF_typ,Tsw*(1-Efficiency!D42),Min_tOFF_typ)) -> 289.45871 | G42: 0.6121479612 | H42: 0.07947368421 | I42: 0.2652747922 | J42: 0.05082164436 | K42: 0.1589473684 | L42: 0.5545174892 | M42: 0.1427065016 | N42: =($B$4^2+G42^2/12)*DCR/1000+($B$4^2+G42^2/12)^2*DCR/1000*(R42-25)*(Constants!$C$32/100) -> 0.01368278049 | O42: 0.1187420499 | P42: =IF($I$4="None",V_cs^2/RFB_1,VLOOKUP($I$4,Design!$A$90:$F$93,5)) -> 0.2097902098 | Q42: 92.84885759 | R42: 109.953287 | S42: =IF(RESET=1,Rdson,Rdson+Rdson*TCR_RdsON/100*(Efficiency!R42-25)) -> 231.5551555 | T42: 12.50003636 | U42: 6.4 | V42: 1.039439031 | W42: 4.48 | X42: 5.519439031 | Y42: 0.8116766894 | Z42: =IF(R42>Constants!$C$31,"TSD",IF(OR(E42=Constants!$C$19,Efficiency!F42=Min_tOFF_typ),IF(E42=Constants!$C$19,"Pulse Skip","Dropout"),"Normal")) -> Normal
A43: =Design!$D$13 -> 85 | B43: 16.31578947 | C43: =IF(RESET=1,VF,VF+(Q43-25)*Design!$B$16/1000) -> 0.3520089144 | D43: 0.4103539522 | E43: =IF(F43=Min_tOFF_typ,Tsw-Min_tOFF_typ,IF(Tsw*Efficiency!D43>Constants!$C$19,Tsw*Efficiency!D43,Constants!$C$19)) -> 205.1769761 | F43: =IF(E43=Constants!$C$19,Tsw-Constants!$C$19,IF(Tsw*(1-Efficiency!D43)>Min_tOFF_typ,Tsw*(1-Efficiency!D43),Min_tOFF_typ)) -> 294.8230239 | G43: 0.6227301204 | H43: 0.08157894737 | I43: 0.2795152355 | J43: 0.04981122935 | K43: 0.1631578947 | L43: 0.5740633069 | M43: 0.1452924656 | N43: =($B$4^2+G43^2/12)*DCR/1000+($B$4^2+G43^2/12)^2*DCR/1000*(R43-25)*(Constants!$C$32/100) -> 0.01373669953 | O43: 0.1251163435 | P43: =IF($I$4="None",V_cs^2/RFB_1,VLOOKUP($I$4,Design!$A$90:$F$93,5)) -> 0.2097902098 | Q43: 92.99108561 | R43: 110.8328488 | S43: =IF(RESET=1,Rdson,Rdson+Rdson*TCR_RdsON/100*(Efficiency!R43-25)) -> 232.3995349 | T43: 12.83643406 | U43: 6.4 | V43: 1.067999025 | W43: 4.48 | X43: 5.547999025 | Y43: 0.8074983394 | Z43: =IF(R43>Constants!$C$31,"TSD",IF(OR(E43=Constants!$C$19,Efficiency!F43=Min_tOFF_typ),IF(E43=Constants!$C$19,"Pulse Skip","Dropout"),"Normal")) -> Normal
A44: =Design!$D$13 -> 85 | B44: 16.73684211 | C44: =IF(RESET=1,VF,VF+(Q44-25)*Design!$B$16/1000) -> 0.3518738652 | D44: 0.4001588116 | E44: =IF(F44=Min_tOFF_typ,Tsw-Min_tOFF_typ,IF(Tsw*Efficiency!D44>Constants!$C$19,Tsw*Efficiency!D44,Constants!$C$19)) -> 200.0794058 | F44: =IF(E44=Constants!$C$19,Tsw-Constants!$C$19,IF(Tsw*(1-Efficiency!D44)>Min_tOFF_typ,Tsw*(1-Efficiency!D44),Min_tOFF_typ)) -> 299.9205942 | G44: 0.6327870203 | H44: 0.08368421053 | I44: 0.2941279778 | J44: 0.04885220672 | K44: 0.1673684211 | L44: 0.5940328161 | M44: 0.1477479062 | N44: =($B$4^2+G44^2/12)*DCR/1000+($B$4^2+G44^2/12)^2*DCR/1000*(R44-25)*(Constants!$C$32/100) -> 0.0137901562 | O44: 0.1316572853 | P44: =IF($I$4="None",V_cs^2/RFB_1,VLOOKUP($I$4,Design!$A$90:$F$93,5)) -> 0.2097902098 | Q44: 93.12613484 | R44: 111.7314767 | S44: =IF(RESET=1,Rdson,Rdson+Rdson*TCR_RdsON/100*(Efficiency!R44-25)) -> 233.2622177 | T44: 13.17282007 | U44: 6.4 | V44: 1.097018374 | W44: 4.48 | X44: 5.577018374 | Y44: 0.8032966183 | Z44: =IF(R44>Constants!$C$31,"TSD",IF(OR(E44=Constants!$C$19,Efficiency!F44=Min_tOFF_typ),IF(E44=Constants!$C$19,"Pulse Skip","Dropout"),"Normal")) -> Normal
A45: =Design!$D$13 -> 85 | B45: 17.15789474 | C45: =IF(RESET=1,VF,VF+(Q45-25)*Design!$B$16/1000) -> 0.3517454648 | D45: 0.3904583451 | E45: =IF(F45=Min_tOFF_typ,Tsw-Min_tOFF_typ,IF(Tsw*Efficiency!D45>Constants!$C$19,Tsw*Efficiency!D45,Constants!$C$19)) -> 195.2291726 | F45: =IF(E45=Constants!$C$19,Tsw-Constants!$C$19,IF(Tsw*(1-Efficiency!D45)>Min_tOFF_typ,Tsw*(1-Efficiency!D45),Min_tOFF_typ)) -> 304.7708274 | G45: 0.6423569106 | H45: 0.08578947368 | I45: 0.3091130194 | J45: 0.04794092389 | K45: 0.1715789474 | L45: 0.6144223643 | M45: 0.1500824589 | N45: =($B$4^2+G45^2/12)*DCR/1000+($B$4^2+G45^2/12)^2*DCR/1000*(R45-25)*(Constants!$C$32/100) -> 0.01384318598 | O45: 0.1383648753 | P45: =IF($I$4="None",V_cs^2/RFB_1,VLOOKUP($I$4,Design!$A$90:$F$93,5)) -> 0.2097902098 | Q45: 93.25453524 | R45: 112.6490064 | S45: =IF(RESET=1,Rdson,Rdson+Rdson*TCR_RdsON/100*(Efficiency!R45-25)) -> 234.1430461 | T45: 13.50919459 | U45: 6.4 | V45: 1.126503094 | W45: 4.48 | X45: 5.606503094 | Y45: 0.7990720641 | Z45: =IF(R45>Constants!$C$31,"TSD",IF(OR(E45=Constants!$C$19,Efficiency!F45=Min_tOFF_typ),IF(E45=Constants!$C$19,"Pulse Skip","Dropout"),"Normal")) -> Normal
A46: =Design!$D$13 -> 85 | B46: 17.57894737 | C46: =IF(RESET=1,VF,VF+(Q46-25)*Design!$B$16/1000) -> 0.3516232341 | D46: 0.3812174144 | E46: =IF(F46=Min_tOFF_typ,Tsw-Min_tOFF_typ,IF(Tsw*Efficiency!D46>Constants!$C$19,Tsw*Efficiency!D46,Constants!$C$19)) -> 190.6087072 | F46: =IF(E46=Constants!$C$19,Tsw-Constants!$C$19,IF(Tsw*(1-Efficiency!D46)>Min_tOFF_typ,Tsw*(1-Efficiency!D46),Min_tOFF_typ)) -> 309.3912928 | G46: 0.6514744171 | H46: 0.08789473684 | I46: 0.3244703601 | J46: 0.04707407516 | K46: 0.1757894737 | L46: 0.6352286458 | M46: 0.1523048338 | N46: =($B$4^2+G46^2/12)*DCR/1000+($B$4^2+G46^2/12)^2*DCR/1000*(R46-25)*(Constants!$C$32/100) -> 0.01389582412 | O46: 0.1452391136 | P46: =IF($I$4="None",V_cs^2/RFB_1,VLOOKUP($I$4,Design!$A$90:$F$93,5)) -> 0.2097902098 | Q46: 93.37676586 | R46: 113.5852891 | S46: =IF(RESET=1,Rdson,Rdson+Rdson*TCR_RdsON/100*(Efficiency!R46-25)) -> 235.0418775 | T46: 13.8455578 | U46: 6.4 | V46: 1.156458627 | W46: 4.48 | X46: 5.636458627 | Y46: 0.7948253143 | Z46: =IF(R46>Constants!$C$31,"TSD",IF(OR(E46=Constants!$C$19,Efficiency!F46=Min_tOFF_typ),IF(E46=Constants!$C$19,"Pulse Skip","Dropout"),"Normal")) -> Normal
A47: =Design!$D$13 -> 85 | B47: =Design!D4 -> 18 | C47: =IF(RESET=1,VF,VF+(Q47-25)*Design!$B$16/1000) -> 0.3515067392 | D47: 0.3724041317 | E47: =IF(F47=Min_tOFF_typ,Tsw-Min_tOFF_typ,IF(Tsw*Efficiency!D47>Constants!$C$19,Tsw*Efficiency!D47,Constants!$C$19)) -> 186.2020659 | F47: =IF(E47=Constants!$C$19,Tsw-Constants!$C$19,IF(Tsw*(1-Efficiency!D47)>Min_tOFF_typ,Tsw*(1-Efficiency!D47),Min_tOFF_typ)) -> 313.7979341 | G47: 0.6601709608 | H47: 0.09 | I47: 0.3402 | J47: 0.04624866047 | K47: 0.18 | L47: 0.6564486605 | M47: 0.154422924 | N47: =($B$4^2+G47^2/12)*DCR/1000+($B$4^2+G47^2/12)^2*DCR/1000*(R47-25)*(Constants!$C$32/100) -> 0.01394810531 | O47: 0.15228 | P47: =IF($I$4="None",V_cs^2/RFB_1,VLOOKUP($I$4,Design!$A$90:$F$93,5)) -> 0.2097902098 | Q47: 93.49326082 | R47: 114.5401897 | S47: =IF(RESET=1,Rdson,Rdson+Rdson*TCR_RdsON/100*(Efficiency!R47-25)) -> 235.9585821 | T47: 14.18190985 | U47: 6.4 | V47: 1.1868899 | W47: 4.48 | X47: 5.6668899 | Y47: 0.7905570921 | Z47: =IF(R47>Constants!$C$31,"TSD",IF(OR(E47=Constants!$C$19,Efficiency!F47=Min_tOFF_typ),IF(E47=Constants!$C$19,"Pulse Skip","Dropout"),"Normal")) -> Normal
A48: =Design!$D$13 -> 85 | B48: =Vin_nom -> 13.5 | C48: =IF(RESET=1,VF,VF+(Q48-25)*Design!$B$16/1000) -> 0.3531294333 | D48: 0.4946434303 | E48: =IF(F48=Min_tOFF_typ,Tsw-Min_tOFF_typ,IF(Tsw*Efficiency!D48>Constants!$C$19,Tsw*Efficiency!D48,Constants!$C$19)) -> 247.3217151 | F48: =IF(E48=Constants!$C$19,Tsw-Constants!$C$19,IF(Tsw*(1-Efficiency!D48)>Min_tOFF_typ,Tsw*(1-Efficiency!D48),Min_tOFF_typ)) -> 252.6782849 | G48: 0.5396110148 | H48: 0.0675 | I48: =B48*$B$4*(B48/(Slew_rise*10^9)*fsw*10^6/2+B48/(Slew_fall*10^9)*fsw*10^6/2) -> 0.1913625 | J48: =(D48*($B$4^2+G48^2/12))*S48*10^-3 -> 0.05777189758 | K48: 0.135 | L48: =SUM(H48:K48) -> 0.4516343976 | M48: 0.1249193953 | N48: =($B$4^2+G48^2/12)*DCR/1000+($B$4^2+G48^2/12)^2*DCR/1000*(R48-25)*(Constants!$C$32/100) -> 0.01336569406 | O48: =0.5*C_SNUB*10^-12*B48^2*fsw*10^6 -> 0.0856575 | P48: =IF($I$4="None",V_cs^2/RFB_1,VLOOKUP($I$4,Design!$A$90:$F$93,5)) -> 0.2097902098 | Q48: =$A48+M48*RthJA -> 91.87056674 | R48: 105.3235479 | S48: =IF(RESET=1,Rdson,Rdson+Rdson*TCR_RdsON/100*(Efficiency!R48-25)) -> 227.110606 | T48: 10.58654017 | U48: 6.4 | V48: =SUM(L48:P48) -> 0.8853671968 | W48: 4.48 | X48: =V48+W48 -> 5.365367197 | Y48: 0.8349847896 | Z48: =IF(R48>Constants!$C$31,"TSD",IF(OR(E48=Constants!$C$19,Efficiency!F48=Min_tOFF_typ),IF(E48=Constants!$C$19,"Pulse Skip","Dropout"),"Normal")) -> Normal
A50: =B6 -> 10 | B50: 170
A51: =B25 -> 18 | B51: 170

Sheet Snubber
A1: ALLEGRO ALT80802 DESIGN SPREADSHEET
A2: INSTRUCTIONS: Enter design goals and component values in the white boxes.
A3: VARIABLES | B3: MIN | C3: TYP | D3: MAX | E3: UNITS | F3: COMMENTS
A4: LX resonance, FLX | B4: ‒ | C4: 135 | D4: ‒ | E4: MHz | F4: Measured LX resonant frequency
A5: LX resonance, TLX | B5: ‒ | C5: =1000000000/(C4*1000000) -> 7.407407407 | D5: ‒ | E5: ns | F5: LX resonance period
A6: Capacitance of D1 | B6: ‒ | C6: 120 | D6: ‒ | E6: pF | F6: Estimated D1 capacitance at VinTYP
A7: Capacitance, other | B7: ‒ | C7: 50 | D7: ‒ | E7: pF | F7: Estimated FET + PCB trace capacitance
A8: Snubber ‒3dB freq. | B8: ‒ | C8: 2.5 | D8: ‒ | E8: Multiple of fLX | F8: Start with 2.5, decrease for more damping
A9: **** Note: The applications schematic is shown at the bottom of this TAB. **** Schematic component values are shown in BLUE.
A10: COMPONENT | B10: VALUE | C10: UNITS | D10: COMMENTS
A11: Snubber Component Calculations:
A12: LEQ | B12: =1000000000*(C5/1000000000)^2/(4*3.14^2*(C6/1000000000000+C7/1000000000000)) -> 8.183974248 | C12: nH | D12: Equivalent inductance, given fLX and CTOTAL
A13: RSNUB | B13: =SQRT(B12*0.000000001/(C6*0.000000000001+C7*0.000000000001)) -> 6.938373368 | C13: Ω | D13: Snubber resistance, use the closest available standard value
A14: RSNUB = | B14: 6.81 | C14: Ω | D14: Enter the snubber resister value
A15: CSNUB | B15: =1000000000000/C8*(C5/1000000000)/B14 -> 435.0900092 | C15: pF | D15: Snubber capacitance, use the closest available standard value
A16: CSNUB = | B16: 470 | C16: pF | D16: Enter the snubber capacitor value, enter "0" if no snubber is used | K16: Diode D1: Example of Capacitance vs. VR
A17: PSNUB | B17: =1000*0.5*B16/1000000000000*Design!D4^2*IF(ISBLANK(Design!B30),Design!B29,Design!B30)*1000000 -> 152.28 | C17: mW | D17: Snubber resistor power requirement at VinMAX and Fsw
C33: Typical SW frequency measurement before snubber

Sheet Constants
A1: These values are all derived from the data sheet or lab measurements. | R1: Std. Resistors | W1: C values up to 10nF
A2: PARAMETER | B2: MIN | C2: TYP | D2: MAX | E2: UNITS | F2: COMMENTS | R2: E6 | T2: E96 | W2: 1 | X2: 1.2
A3: Input Voltage | B3: 3.8 | D3: 50 | E3: V | F3: Datasheet values | R3: 100 | S3: 150 | T3: 100 | U3: 102 | W3: 1.2 | X3: 1.5
A4: VCS | B4: 0.192 | C4: 0.2 | D4: 0.208 | E4: V | F4: Datasheet values | R4: 150 | S4: 220 | T4: 102 | U4: 105 | W4: 1.5 | X4: 1.8
A5: VCS tol | B5: =100*(B4-C4)/C4 -> -4 | C5: ‒ | D5: =100*(D4-C4)/C4 -> 4 | E5: % | F5: Calculated values | R5: 220 | S5: 330 | T5: 105 | U5: 107 | W5: 1.8 | X5: 2.2
A6: UVLO Stop | B6: ‒ | C6: 3 | D6: 3.3 | E6: V | F6: Datasheet values | R6: 330 | S6: 470 | T6: 107 | U6: 110 | W6: 3.3 | X6: 3.9
A7: UVLO Hysteresis | B7: 300 | C7: ‒ | D7: ‒ | E7: mV | F7: Datasheet value | R7: 470 | S7: 680 | T7: 110 | U7: 113 | W7: 4.7 | X7: 5.6
A8: UVLO Multiplier | B8: ‒ | C8: 0.5 | D8: ‒ | E8: ‒ | F8: Chosen value, allows for margin | R8: 680 | S8: 1000 | T8: 113 | U8: 115 | W8: 6.8 | X8: 8.2
A9: Maximum output Voltage | B9: 16 | C9: 18 | D9: 20 | E9: V | F9: Datasheet values | R9: E12 | T9: 115 | U9: 118 | W9: 8.2 | X9: 10
A10: AVOL | B10: ‒ | C10: 60 | D10: ‒ | E10: dB | F10: Datasheet value | R10: 100 | S10: 120 | T10: 118 | U10: 121 | W10: C values greater than 10nF
A11: gm_EA | B11: 100 | C11: 120 | D11: 146 | E11: µA/V | F11: Datasheet values | R11: 120 | S11: 150 | T11: 121 | U11: 124 | W11: 1 | X11: 1.5
A12: Ro_EA | B12: =POWER(10,$C$10/20)/(D11/1000000)/1000000 -> 6.849315068 | C12: =POWER(10,$C$10/20)/(C11/1000000)/1000000 -> 8.333333333 | D12: =POWER(10,$C$10/20)/(B11/1000000)/1000000 -> 10 | E12: MΩ | F12: Calculated values | R12: 150 | S12: 180 | T12: 124 | U12: 127 | W12: 1.5 | X12: 2.2
A13: gm_power | B13: ‒ | C13: 9 | D13: ‒ | E13: A/V | F13: Datasheet value | R13: 180 | S13: 220 | T13: 127 | U13: 130 | W13: 2.2 | X13: 3.3
A14: Slope comp @ 400kHz | B14: ‒ | C14: 0.62 | D14: ‒ | E14: A/µs | F14: Design supplied value | R14: 220 | S14: 270 | T14: 130 | U14: 133 | W14: 3.3 | X14: 4.7
A15: Slope Comp @ 2MHz | B15: ‒ | C15: 3.1 | D15: ‒ | E15: A/µs | F15: Datasheet values | R15: 270 | S15: 330 | T15: 133 | U15: 137 | W15: 4.7 | X15: 6.8
A16: fsw | B16: 0.2 | C16: ‒ | D16: 2.5 | E16: MHz | F16: Datasheet values | R16: 330 | S16: 390 | T16: 137 | U16: 140 | W16: 6.8 | X16: 10
A17: fsw_tol | B17: -10 | C17: ‒ | D17: 10 | E17: % | F17: Datasheet values | R17: 390 | S17: 470 | T17: 140 | U17: 143
A18: ∆fSW | B18: ‒ | C18: 5 | D18: ‒ | E18: % | F18: ±5 Dither frequency | R18: 470 | S18: 560 | T18: 143 | U18: 147
A19: t_onMIN | B19: ‒ | C19: 80 | D19: 100 | E19: ns | F19: Datasheet values, strongly affects Fsw at VinMAX | R19: 560 | S19: 680 | T19: 147 | U19: 150
A20: t_offMIN | B20: ‒ | C20: 100 | D20: ‒ | E20: ns | F20: Datasheet value, strongly affects Fsw at VinMIN | R20: 680 | S20: 820 | T20: 150 | U20: 154
A21: IQ | B21: ‒ | C21: 5 | D21: ‒ | E21: mA | F21: Datasheet value | R21: 820 | S21: 1000 | T21: 154 | U21: 158
A22: RDSon @ 25C | B22: ‒ | C22: 150 | D22: ‒ | E22: mΩ | F22: Design supplied value | R22: E24 | T22: 158 | U22: 162
A23: TCR of RDSon | B23: ‒ | C23: 0.64 | D23: ‒ | E23: % / °C | F23: Design supplied value | R23: 100 | S23: 110 | T23: 162 | U23: 165
A24: VGS | B24: ‒ | C24: 5 | D24: ‒ | E24: V | F24: Design supplied value | R24: 110 | S24: 120 | T24: 165 | U24: 169
A25: Qg_FET | B25: ‒ | C25: ‒ | D25: 5 | E25: nC | F25: Design supplied value | R25: 120 | S25: 130 | T25: 169 | U25: 174
A26: SW_slew_rise | B26: ‒ | C26: 1.5 | D26: ‒ | E26: V/ns | F26: Measured value | R26: 130 | S26: 150 | T26: 174 | U26: 178
A27: SW_slew_fall | B27: ‒ | C27: 1.2 | D27: ‒ | E27: V/ns | F27: Measured value | R27: 150 | S27: 160 | T27: 178 | U27: 182
A28: Pulse by pulse current limit | B28: 3.5 | C28: 5.5 | D28: 6.5 | E28: A | F28: ILIMMIN at 5% duty cycle, datasheet values | R28: 160 | S28: 180 | T28: 182 | U28: 187
A29: ILIM slope | B29: ‒ | C29: -0.0106 | D29: ‒ | E29: A / % | F29: Curve fit value, slope | R29: 180 | S29: 200 | T29: 187 | U29: 191
A30: ILIM offset | B30: ‒ | C30: 4.9529 | D30: ‒ | E30: A | F30: Curve fit value, offset | R30: 200 | S30: 220 | T30: 191 | U30: 196
A31: TSD_Threshold | B31: ‒ | C31: 170 | D31: ‒ | E31: °C | F31: Thermal Shutdown | R31: 220 | S31: 240 | T31: 196 | U31: 200
A32: TCR of Copper | B32: ‒ | C32: 0.393 | D32: ‒ | E32: %/°C | F32: Known value, used for inductor DCR | R32: 240 | S32: 270 | T32: 200 | U32: 205
R33: 270 | S33: 300 | T33: 205 | U33: 210
A34: nano | B34: =POWER(10,-9) -> 1e-09 | E34: Yes | R34: 300 | S34: 330 | T34: 210 | U34: 215
A35: micro | B35: =POWER(10,-6) -> 1e-06 | E35: No | R35: 330 | S35: 360 | T35: 215 | U35: 221
A36: milli | B36: =POWER(10,-3) -> 0.001 | R36: 360 | S36: 390 | T36: 221 | U36: 226
A37: kilo | B37: =POWER(10,3) -> 1000 | R37: 390 | S37: 430 | T37: 226 | U37: 232
A38: mega | B38: =POWER(10,6) -> 1000000 | R38: 430 | S38: 470 | T38: 232 | U38: 237
A39: giga | B39: =POWER(10,9) -> 1000000000 | R39: 470 | S39: 510 | T39: 237 | U39: 243
R40: 510 | S40: 560 | T40: 243 | U40: 249
R41: 560 | S41: 620 | T41: 249 | U41: 255
R42: 620 | S42: 680 | T42: 255 | U42: 261
R43: 680 | S43: 750 | T43: 261 | U43: 267
R44: 750 | S44: 820 | T44: 267 | U44: 274
R45: 820 | S45: 910 | T45: 274 | U45: 280
R46: 910 | S46: 1000 | T46: 280 | U46: 287
R47: E48 | T47: 287 | U47: 294
R48: 100 | S48: 105 | T48: 294 | U48: 301
R49: 105 | S49: 110 | T49: 301 | U49: 309
R50: 110 | S50: 115 | T50: 309 | U50: 316
R51: 115 | S51: 121 | T51: 316 | U51: 324
R52: 121 | S52: 127 | T52: 324 | U52: 332
R53: 127 | S53: 133 | T53: 332 | U53: 340
R54: 133 | S54: 140 | T54: 340 | U54: 348
R55: 140 | S55: 147 | T55: 348 | U55: 357
R56: 147 | S56: 154 | T56: 357 | U56: 365
R57: 154 | S57: 162 | T57: 365 | U57: 374
R58: 162 | S58: 169 | T58: 374 | U58: 383
R59: 169 | S59: 178 | T59: 383 | U59: 392
R60: 178 | S60: 187 | T60: 392 | U60: 402
R61: 187 | S61: 196 | T61: 402 | U61: 412
R62: 196 | S62: 205 | T62: 412 | U62: 422
R63: 205 | S63: 215 | T63: 422 | U63: 432
R64: 215 | S64: 226 | T64: 432 | U64: 442
R65: 226 | S65: 237 | T65: 442 | U65: 453
R66: 237 | S66: 249 | T66: 453 | U66: 464
R67: 249 | S67: 261 | T67: 464 | U67: 475
R68: 261 | S68: 274 | T68: 475 | U68: 487
R69: 274 | S69: 287 | T69: 487 | U69: 499
R70: 287 | S70: 301 | T70: 499 | U70: 511
R71: 301 | S71: 316 | T71: 511 | U71: 523
R72: 316 | S72: 332 | T72: 523 | U72: 536
R73: 332 | S73: 348 | T73: 536 | U73: 549
R74: 348 | S74: 365 | T74: 549 | U74: 562
R75: 365 | S75: 383 | T75: 562 | U75: 576
R76: 383 | S76: 402 | T76: 576 | U76: 590
R77: 402 | S77: 422 | T77: 590 | U77: 604
R78: 422 | S78: 442 | T78: 604 | U78: 619
R79: 442 | S79: 464 | T79: 619 | U79: 634
R80: 464 | S80: 487 | T80: 634 | U80: 649
R81: 487 | S81: 511 | T81: 649 | U81: 665
R82: 511 | S82: 536 | T82: 665 | U82: 681
R83: 536 | S83: 562 | T83: 681 | U83: 698
R84: 562 | S84: 590 | T84: 698 | U84: 715
R85: 590 | S85: 619 | T85: 715 | U85: 732
R86: 619 | S86: 649 | T86: 732 | U86: 750
R87: 649 | S87: 681 | T87: 750 | U87: 768
R88: 681 | S88: 715 | T88: 768 | U88: 787
R89: 715 | S89: 750 | T89: 787 | U89: 806
R90: 750 | S90: 787 | T90: 806 | U90: 825
R91: 787 | S91: 825 | T91: 825 | U91: 845
R92: 825 | S92: 866 | T92: 845 | U92: 866
R93: 866 | S93: 909 | T93: 866 | U93: 887
R94: 909 | S94: 953 | T94: 887 | U94: 909
R95: 953 | S95: 1000 | T95: 909 | U95: 931
T96: 931 | U96: 953
T97: 953 | U97: 976
T98: 976 | U98: 1000

Sheet Sheet1 (hidden)
